Body,Body Name,Date,Transaction Number,Invoice Number,Amount,Supplier Name,Supplier ID ,VAT Registration Number ,Expense Area,Expense Type,Expense Code,Purchase Order
http://statistics.data.gov.uk/id/local-authority/29UP,Tonbridge & Malling Borough Council,4/6/2022,0011044150/1,11044150, 7.07,GSF SANDYLIGHT LTD,01705300,,Temporary Staff,Admin & Prop Sals&Overheads,D01AADA0511300,
http://statistics.data.gov.uk/id/local-authority/29UP,Tonbridge & Malling Borough Council,4/6/2022,0011044151/1,11044151, 1333.33,Maidstone Borough Council,00315300,,Payment re Prev Yrs Cred Acc,Sundry Creditors Admin & Prop,J80TA000001101,
http://statistics.data.gov.uk/id/local-authority/29UP,Tonbridge & Malling Borough Council,4/6/2022,0011044153/1,11044153, 360.00,Disclosure & Barring Service,00865900,,Professional Fees,Licences - Fee Paying,H27SH000044001,
http://statistics.data.gov.uk/id/local-authority/29UP,Tonbridge & Malling Borough Council,4/6/2022,0011044154/1,11044154, 290.52,Key Craft,01148600,,Purchases,TIC Stock Account,K18AX000001002,
http://statistics.data.gov.uk/id/local-authority/29UP,Tonbridge & Malling Borough Council,4/6/2022,0011044155/1,11044155, 1077.51,KH Recruitment Ltd,01738900,,Payment re Prev Yrs Cred Acc,Sundry Creditors Admin & Prop,J80TA000001101,
http://statistics.data.gov.uk/id/local-authority/29UP,Tonbridge & Malling Borough Council,4/6/2022,0011044156/1,11044156, 1271.00,Thomson Snell & Passmore,00101700,,Legal Fees,Legal Sals&Overheads,D01ARDR0044002,
http://statistics.data.gov.uk/id/local-authority/29UP,Tonbridge & Malling Borough Council,4/6/2022,0012008305/1,12008305, 745.43,NEC Software Solutions UK Ltd,01073900,202159745,Software Hire & Support,Information Technology,D27KD000044059,410032170
http://statistics.data.gov.uk/id/local-authority/29UP,Tonbridge & Malling Borough Council,4/6/2022,0012008306/1,12008306, 3.00,O2 UK Ltd,01268000,,Telephones - General,Open Spaces & Amenity Areas,B22LE000045010,
http://statistics.data.gov.uk/id/local-authority/29UP,Tonbridge & Malling Borough Council,4/6/2022,0012008306/10,12008306, 6.00,O2 UK Ltd,01268000,,Mobile Telephones,Technical Sals&Overheads,D01AEDE0145013,
http://statistics.data.gov.uk/id/local-authority/29UP,Tonbridge & Malling Borough Council,4/6/2022,0012008306/11,12008306, 9.10,O2 UK Ltd,01268000,,Mobile Telephones,Technical Sals&Overheads,D01AEDE0245013,
http://statistics.data.gov.uk/id/local-authority/29UP,Tonbridge & Malling Borough Council,4/6/2022,0012008306/12,12008306, 39.10,O2 UK Ltd,01268000,,Mobile Telephones,Technical Sals&Overheads,D01AEDE0445013,
http://statistics.data.gov.uk/id/local-authority/29UP,Tonbridge & Malling Borough Council,4/6/2022,0012008306/13,12008306, 3.00,O2 UK Ltd,01268000,,Mobile Telephones,Technical Sals&Overheads,D01AEDE0545013,
http://statistics.data.gov.uk/id/local-authority/29UP,Tonbridge & Malling Borough Council,4/6/2022,0012008306/14,12008306, 12.00,O2 UK Ltd,01268000,,Mobile Telephones,Finance Sals&Overheads,D01AFDF0045013,
http://statistics.data.gov.uk/id/local-authority/29UP,Tonbridge & Malling Borough Council,4/6/2022,0012008306/15,12008306, 6.00,O2 UK Ltd,01268000,,Mobile Telephones,Finance Sals&Overheads,D01AFDF0945013,
http://statistics.data.gov.uk/id/local-authority/29UP,Tonbridge & Malling Borough Council,4/6/2022,0012008306/16,12008306, 12.00,O2 UK Ltd,01268000,,Mobile Telephones,St Scene & Leis Sals&Overheads,D01AGDG0045013,
http://statistics.data.gov.uk/id/local-authority/29UP,Tonbridge & Malling Borough Council,4/6/2022,0012008306/17,12008306, 6.00,O2 UK Ltd,01268000,,Mobile Telephones,St Scene & Leis Sals&Overheads,D01AGDG0145013,
http://statistics.data.gov.uk/id/local-authority/29UP,Tonbridge & Malling Borough Council,4/6/2022,0012008306/18,12008306, 9.00,O2 UK Ltd,01268000,,Mobile Telephones,St Scene & Leis Sals&Overheads,D01AGDG0445013,
http://statistics.data.gov.uk/id/local-authority/29UP,Tonbridge & Malling Borough Council,4/6/2022,0012008306/19,12008306, 33.10,O2 UK Ltd,01268000,,Mobile Telephones,St Scene & Leis Sals&Overheads,D01AGDG2045013,
http://statistics.data.gov.uk/id/local-authority/29UP,Tonbridge & Malling Borough Council,4/6/2022,0012008306/2,12008306, 6.00,O2 UK Ltd,01268000,,Telephones - General,Leybourne Lakes Country Park,B22LK000045010,
http://statistics.data.gov.uk/id/local-authority/29UP,Tonbridge & Malling Borough Council,4/6/2022,0012008306/20,12008306, 9.00,O2 UK Ltd,01268000,,Mobile Telephones,Planning Sals&Overheads,D01AJDJ0045013,
http://statistics.data.gov.uk/id/local-authority/29UP,Tonbridge & Malling Borough Council,4/6/2022,0012008306/21,12008306, 12.00,O2 UK Ltd,01268000,,Mobile Telephones,Planning Sals&Overheads,D01AJDJ0245013,
http://statistics.data.gov.uk/id/local-authority/29UP,Tonbridge & Malling Borough Council,4/6/2022,0012008306/22,12008306, 6.00,O2 UK Ltd,01268000,,Mobile Telephones,Legal Sals&Overheads,D01ARDR0045013,
http://statistics.data.gov.uk/id/local-authority/29UP,Tonbridge & Malling Borough Council,4/6/2022,0012008306/23,12008306, 12.00,O2 UK Ltd,01268000,,Mobile Telephones,Legal Sals&Overheads,D01ARDR0445013,
http://statistics.data.gov.uk/id/local-authority/29UP,Tonbridge & Malling Borough Council,4/6/2022,0012008306/24,12008306, 3.00,O2 UK Ltd,01268000,,Mobile Telephones,Legal Sals&Overheads,D01ARDR0745013,
http://statistics.data.gov.uk/id/local-authority/29UP,Tonbridge & Malling Borough Council,4/6/2022,0012008306/25,12008306, 3.00,O2 UK Ltd,01268000,,Mobile Telephones,Env Hlth & Hsg Sals&Overheads,D01AVDV0045013,
http://statistics.data.gov.uk/id/local-authority/29UP,Tonbridge & Malling Borough Council,4/6/2022,0012008306/26,12008306, 9.00,O2 UK Ltd,01268000,,Mobile Telephones,Env Hlth & Hsg Sals&Overheads,D01AVDV0145013,
http://statistics.data.gov.uk/id/local-authority/29UP,Tonbridge & Malling Borough Council,4/6/2022,0012008306/27,12008306, 6.00,O2 UK Ltd,01268000,,Mobile Telephones,Env Hlth & Hsg Sals&Overheads,D01AVDV0345013,
http://statistics.data.gov.uk/id/local-authority/29UP,Tonbridge & Malling Borough Council,4/6/2022,0012008306/28,12008306, 3.00,O2 UK Ltd,01268000,,Mobile Telephones,Env Hlth & Hsg Sals&Overheads,D01AVDV0745013,
http://statistics.data.gov.uk/id/local-authority/29UP,Tonbridge & Malling Borough Council,4/6/2022,0012008306/29,12008306, 6.00,O2 UK Ltd,01268000,,Mobile Telephones,Env Hlth & Hsg Sals&Overheads,D01AVDV0945013,
http://statistics.data.gov.uk/id/local-authority/29UP,Tonbridge & Malling Borough Council,4/6/2022,0012008306/3,12008306, 6.00,O2 UK Ltd,01268000,,Mobile Telephones,Admin & Prop Sals&Overheads,D01AADA0045013,
http://statistics.data.gov.uk/id/local-authority/29UP,Tonbridge & Malling Borough Council,4/6/2022,0012008306/30,12008306, 9.20,O2 UK Ltd,01268000,,Mobile Telephones,Customer Services,D23CS000045013,
http://statistics.data.gov.uk/id/local-authority/29UP,Tonbridge & Malling Borough Council,4/6/2022,0012008306/31,12008306, 3.00,O2 UK Ltd,01268000,,Mobile Telephones,Tonbridge Gateway,D23TG000045013,
http://statistics.data.gov.uk/id/local-authority/29UP,Tonbridge & Malling Borough Council,4/6/2022,0012008306/32,12008306, 627.00,O2 UK Ltd,01268000,,Leased Lines & Modems,Information Technology,D27KD000045011,
http://statistics.data.gov.uk/id/local-authority/29UP,Tonbridge & Malling Borough Council,4/6/2022,0012008306/33,12008306, 3.00,O2 UK Ltd,01268000,,Mobile Telephones,Mayoral & Other Member Support,D29LX000045013,
http://statistics.data.gov.uk/id/local-authority/29UP,Tonbridge & Malling Borough Council,4/6/2022,0012008306/34,12008306, 3.00,O2 UK Ltd,01268000,,Emergency Out of Hours Recharg,Refuse Collection,H20SA000045030,
http://statistics.data.gov.uk/id/local-authority/29UP,Tonbridge & Malling Borough Council,4/6/2022,0012008306/35,12008306, 3.00,O2 UK Ltd,01268000,,Emergency Out of Hours Recharg,Street Scene,H23SD000045030,
http://statistics.data.gov.uk/id/local-authority/29UP,Tonbridge & Malling Borough Council,4/6/2022,0012008306/4,12008306, 3.00,O2 UK Ltd,01268000,,Mobile Telephones,Admin & Prop Sals&Overheads,D01AADA1045013,
http://statistics.data.gov.uk/id/local-authority/29UP,Tonbridge & Malling Borough Council,4/6/2022,0012008306/5,12008306, 9.00,O2 UK Ltd,01268000,,Mobile Telephones,Admin & Prop Sals&Overheads,D01AADA1245013,
http://statistics.data.gov.uk/id/local-authority/29UP,Tonbridge & Malling Borough Council,4/6/2022,0012008306/6,12008306, 3.00,O2 UK Ltd,01268000,,Mobile Telephones,Chief Exec Sals&Overheads,D01ACDC0045013,
http://statistics.data.gov.uk/id/local-authority/29UP,Tonbridge & Malling Borough Council,4/6/2022,0012008306/7,12008306, 3.00,O2 UK Ltd,01268000,,Mobile Telephones,Chief Exec Sals&Overheads,D01ACDC0145013,
http://statistics.data.gov.uk/id/local-authority/29UP,Tonbridge & Malling Borough Council,4/6/2022,0012008306/8,12008306, 3.00,O2 UK Ltd,01268000,,Mobile Telephones,Chief Exec Sals&Overheads,D01ACDC0245013,
http://statistics.data.gov.uk/id/local-authority/29UP,Tonbridge & Malling Borough Council,4/6/2022,0012008306/9,12008306, 3.00,O2 UK Ltd,01268000,,Mobile Telephones,Technical Sals&Overheads,D01AEDE0045013,
http://statistics.data.gov.uk/id/local-authority/29UP,Tonbridge & Malling Borough Council,4/6/2022,0012008307/1,12008307, 816.75,Canon (UK) Limited,00298700,,Maintenance - Ancillary Equip,Information Technology,D27KD000040137,
http://statistics.data.gov.uk/id/local-authority/29UP,Tonbridge & Malling Borough Council,4/6/2022,0012008308/1,12008308, 15.29,Esendex Limited,01008900,,Leased Lines & Modems,Information Technology,D27KD000045011,
http://statistics.data.gov.uk/id/local-authority/29UP,Tonbridge & Malling Borough Council,4/6/2022,0012008309/1,12008309, 2465.43,NTT Cloud Communications UK Ltd,01794600,,Leased Lines & Modems,Information Technology,D27KD000045011,
http://statistics.data.gov.uk/id/local-authority/29UP,Tonbridge & Malling Borough Council,4/6/2022,0021037872/1,21037872, 3294.00,CJS Plants LTD,01596000,,Payment re Prev Yrs Cred Acc,Sundry Creditors SSLTS,J80TL000001101,
http://statistics.data.gov.uk/id/local-authority/29UP,Tonbridge & Malling Borough Council,4/6/2022,0021037873/1,21037873, 51032.63,Landscape Services Ltd,00057600,,Payment re Prev Yrs Cred Acc,Sundry Creditors SSLTS,J80TL000001101,
http://statistics.data.gov.uk/id/local-authority/29UP,Tonbridge & Malling Borough Council,4/6/2022,0021037874/1,21037874, 395.00,Flash Mobile Welding Services Ltd,01189200,,Maintenance of Grounds,Haysden Country Park,B22LC000020402,210056698
http://statistics.data.gov.uk/id/local-authority/29UP,Tonbridge & Malling Borough Council,4/6/2022,0021037875/1,21037875, 1270.00,Flash Mobile Welding Services Ltd,01189200,,Payment re Prev Yrs Cred Acc,Sundry Creditors SSLTS,J80TL000001101,
http://statistics.data.gov.uk/id/local-authority/29UP,Tonbridge & Malling Borough Council,4/6/2022,0021037876/1,21037876, 150.00,Forestry First,01834900,,Health & Safety - Trees,Countryside/Woodland Mgt,B22LG000044045,210056712
http://statistics.data.gov.uk/id/local-authority/29UP,Tonbridge & Malling Borough Council,4/6/2022,0021037877/1,21037877, 55.50,HABOKE Woodyard,01804700,,Maintenance of Grounds,Open Spaces & Amenity Areas,B22LE000020402,
http://statistics.data.gov.uk/id/local-authority/29UP,Tonbridge & Malling Borough Council,4/6/2022,0021037878/1,21037878, 1328.00,Security & Electronic Solutions Ltd,01379500,,Initial Furniture & Equipment,Capital Renewals Leisure,P05KGBC0209906,210056482
http://statistics.data.gov.uk/id/local-authority/29UP,Tonbridge & Malling Borough Council,4/6/2022,0021037879/1,21037879, 738.10,SWS Countryside & Landscape,01567200,,Payment re Prev Yrs Cred Acc,Sundry Creditors SSLTS,J80TL000001101,
http://statistics.data.gov.uk/id/local-authority/29UP,Tonbridge & Malling Borough Council,4/6/2022,0021037881/1,21037881, 190.00,Westway Fencing and Garden Services,00159700,,Maintenance of Grounds,Sports Grounds,B13ET000020402,210056300
http://statistics.data.gov.uk/id/local-authority/29UP,Tonbridge & Malling Borough Council,4/6/2022,0022026474/1,22026474, 360.00,Britains Limited,01743900,,Repairs & Mtce to Buildings,Homelessness,C01AA000020101,220003208
http://statistics.data.gov.uk/id/local-authority/29UP,Tonbridge & Malling Borough Council,4/6/2022,0022026475/1,22026475, 18289.50,DCB (Kent) LTD,01326800,,Other Expenses,Disabled Facilities Grant Mand,P03AC000009908,
http://statistics.data.gov.uk/id/local-authority/29UP,Tonbridge & Malling Borough Council,4/6/2022,0022026476/1,22026476, 6312.11,Hubbard & Houghton Construction Ltd,00970600,,Other Expenses,Disabled Facilities Grant Mand,P03AC000009908,
http://statistics.data.gov.uk/id/local-authority/29UP,Tonbridge & Malling Borough Council,4/6/2022,0022026477/1,22026477, 908.94,Peabody South East LTD,01680900,,Other Expenses,Disabled Facilities Grant Mand,P03AC000009908,
http://statistics.data.gov.uk/id/local-authority/29UP,Tonbridge & Malling Borough Council,4/6/2022,0022026478/1,22026478, 6.00,Tonbridge & Malling Borough Council,00103700,,Professional Fees,Private Sector Housing Renewal,C03BD000044001,
http://statistics.data.gov.uk/id/local-authority/29UP,Tonbridge & Malling Borough Council,4/6/2022,0022026479/1,22026479, 455.00,Acoustic Calibration Services Ltd,00775900,,Payment re Prev Yrs Cred Acc,Sundry Creditors PHEHS,J80TB000001101,
http://statistics.data.gov.uk/id/local-authority/29UP,Tonbridge & Malling Borough Council,4/6/2022,0022026480/1,22026480, 430.00,Acoustic Calibration Services Ltd,00775900,,Payment re Prev Yrs Cred Acc,Sundry Creditors PHEHS,J80TB000001101,
http://statistics.data.gov.uk/id/local-authority/29UP,Tonbridge & Malling Borough Council,4/6/2022,0022026481/1,22026481, 379.54,British Gas Services LTD,01260000,,Electricity,Homelessness,C01AAMAUN21002,
http://statistics.data.gov.uk/id/local-authority/29UP,Tonbridge & Malling Borough Council,4/6/2022,0022026482/1,22026482, 16.09,Biffa Waste Services Ltd,01284500,,Trade Refuse Charges,Cleaning & Security,D21FD000044008,
http://statistics.data.gov.uk/id/local-authority/29UP,Tonbridge & Malling Borough Council,4/6/2022,0022026483/1,22026483, 400.00,Green Recycling LTD,01563000,,Payment re Prev Yrs Cred Acc,Sundry Creditors SSLTS,J80TL000001101,
http://statistics.data.gov.uk/id/local-authority/29UP,Tonbridge & Malling Borough Council,4/6/2022,0022026485/1,22026485, 51.24,KCC - L.A.S.E.R Commercial Services ,00184300,,Electricity,Public Conveniences,H22SCH00421002,
http://statistics.data.gov.uk/id/local-authority/29UP,Tonbridge & Malling Borough Council,4/6/2022,0022026486/1,22026486, 77.98,KCC - L.A.S.E.R Commercial Services ,00184300,,Electricity,Public Conveniences,H22SCH00421002,
http://statistics.data.gov.uk/id/local-authority/29UP,Tonbridge & Malling Borough Council,4/6/2022,0022026487/1,22026487, 25.45,KCC - L.A.S.E.R Commercial Services ,00184300,,Electricity,Public Conveniences,H22SCH00421002,
http://statistics.data.gov.uk/id/local-authority/29UP,Tonbridge & Malling Borough Council,4/6/2022,0022026488/1,22026488, 51.65,KCC - L.A.S.E.R Commercial Services ,00184300,,Electricity,Public Conveniences,H22SCH00421002,
http://statistics.data.gov.uk/id/local-authority/29UP,Tonbridge & Malling Borough Council,4/6/2022,0022026489/1,22026489, 26.14,KCC - L.A.S.E.R Commercial Services ,00184300,,Electricity,Public Conveniences,H22SCH00421002,
http://statistics.data.gov.uk/id/local-authority/29UP,Tonbridge & Malling Borough Council,4/6/2022,0022026490/1,22026490, 77.42,KCC - L.A.S.E.R Commercial Services ,00184300,,Electricity,Public Conveniences,H22SCH00421002,
http://statistics.data.gov.uk/id/local-authority/29UP,Tonbridge & Malling Borough Council,4/6/2022,0022026491/1,22026491, 49.68,KCC - L.A.S.E.R Commercial Services ,00184300,,Electricity,Public Conveniences,H22SCH00421002,
http://statistics.data.gov.uk/id/local-authority/29UP,Tonbridge & Malling Borough Council,4/6/2022,0022026492/1,22026492, 76.01,KCC - L.A.S.E.R Commercial Services ,00184300,,Electricity,Public Conveniences,H22SCH00421002,
http://statistics.data.gov.uk/id/local-authority/29UP,Tonbridge & Malling Borough Council,4/6/2022,0022026493/1,22026493, 24.82,KCC - L.A.S.E.R Commercial Services ,00184300,,Electricity,Public Conveniences,H22SCH00421002,
http://statistics.data.gov.uk/id/local-authority/29UP,Tonbridge & Malling Borough Council,4/6/2022,0022026494/1,22026494, 72.15,KCC - L.A.S.E.R Commercial Services ,00184300,,Electricity,Public Conveniences,H22SCH00421002,
http://statistics.data.gov.uk/id/local-authority/29UP,Tonbridge & Malling Borough Council,4/6/2022,0022026495/1,22026495, 268.41,KCC - L.A.S.E.R Commercial Services ,00184300,,Electricity,Public Conveniences,H22SCH00421002,
http://statistics.data.gov.uk/id/local-authority/29UP,Tonbridge & Malling Borough Council,4/6/2022,0022026496/1,22026496, 8.85,KCS,00054200,,Stationery,Env Hlth & Hsg Sals&Overheads,D01AVDV0643003,220003214
http://statistics.data.gov.uk/id/local-authority/29UP,Tonbridge & Malling Borough Council,4/6/2022,0022026496/2,22026496, 2.95,KCS,00054200,,Stationery,Env Hlth & Hsg Sals&Overheads,D01AVDV0643003,220003214
http://statistics.data.gov.uk/id/local-authority/29UP,Tonbridge & Malling Borough Council,4/6/2022,0022026497/1,22026497, 2005.00,On Site Wheelie Washers,01069700,,Payment re Prev Yrs Cred Acc,Sundry Creditors SSLTS,J80TL000001101,
http://statistics.data.gov.uk/id/local-authority/29UP,Tonbridge & Malling Borough Council,4/6/2022,0022026498/1,22026498, 492.00,On Site Wheelie Washers,01069700,,Payment re Prev Yrs Cred Acc,Sundry Creditors SSLTS,J80TL000001101,
http://statistics.data.gov.uk/id/local-authority/29UP,Tonbridge & Malling Borough Council,4/6/2022,0022026499/1,22026499, 7110.00,On Site Wheelie Washers,01069700,,Payment re Prev Yrs Cred Acc,Sundry Creditors SSLTS,J80TL000001101,
http://statistics.data.gov.uk/id/local-authority/29UP,Tonbridge & Malling Borough Council,4/6/2022,0022026500/1,22026500, 152.98,Peabody South East LTD,01680900,,Payment re Prev Yrs Cred Acc,Sundry Creditors PHEHS,J80TB000001101,
http://statistics.data.gov.uk/id/local-authority/29UP,Tonbridge & Malling Borough Council,4/6/2022,0022026501/1,22026501, 782.00,Ricardo- AEA- Ltd,00445700,,Payment re Prev Yrs Cred Acc,Sundry Creditors PHEHS,J80TB000001101,
http://statistics.data.gov.uk/id/local-authority/29UP,Tonbridge & Malling Borough Council,4/6/2022,0022026502/1,22026502, 210.00,Housing Action Management Ltd,01842000,,Temporary Accommodation,Homelessness,C01AA000044051,
http://statistics.data.gov.uk/id/local-authority/29UP,Tonbridge & Malling Borough Council,4/6/2022,0022026503/1,22026503, 1584.50,Tunbridge Wells Borough Council,00844600,,Payment re Prev Yrs Cred Acc,Sundry Creditors PHEHS,J80TB000001101,
http://statistics.data.gov.uk/id/local-authority/29UP,Tonbridge & Malling Borough Council,4/6/2022,0022026504/1,22026504, 3735.29,Ward Security LTD,01490000,,Payment re Prev Yrs Cred Acc,Sundry Creditors SSLTS,J80TL000001101,
http://statistics.data.gov.uk/id/local-authority/29UP,Tonbridge & Malling Borough Council,4/6/2022,0022026505/1,22026505, 3982.50,Specialist Hygiene Services,01466100,,Payment re Prev Yrs Cred Acc,Sundry Creditors SSLTS,J80TL000001101,
http://statistics.data.gov.uk/id/local-authority/29UP,Tonbridge & Malling Borough Council,4/6/2022,0022026505/2,22026505, 205.30,Specialist Hygiene Services,01466100,,Payment re Prev Yrs Cred Acc,Sundry Creditors SSLTS,J80TL000001101,
http://statistics.data.gov.uk/id/local-authority/29UP,Tonbridge & Malling Borough Council,4/6/2022,0022026506/1,22026506, 1416.00,The Oyster Partnership,01196400,,Payment re Prev Yrs Cred Acc,Sundry Creditors PHEHS,J80TB000001101,
http://statistics.data.gov.uk/id/local-authority/29UP,Tonbridge & Malling Borough Council,4/6/2022,0022026507/1,22026507, 1776.00,The Oyster Partnership,01196400,,Payment re Prev Yrs Cred Acc,Sundry Creditors PHEHS,J80TB000001101,
http://statistics.data.gov.uk/id/local-authority/29UP,Tonbridge & Malling Borough Council,4/6/2022,0022026508/1,22026508, 1632.00,The Oyster Partnership,01196400,,Payment re Prev Yrs Cred Acc,Sundry Creditors PHEHS,J80TB000001101,
http://statistics.data.gov.uk/id/local-authority/29UP,Tonbridge & Malling Borough Council,4/6/2022,0022026509/1,22026509, 443.60,Countrystyle Group,00835900,781981681,Payment re Prev Yrs Cred Acc,Sundry Creditors SSLTS,J80TL000001101,
http://statistics.data.gov.uk/id/local-authority/29UP,Tonbridge & Malling Borough Council,4/6/2022,0022026511/1,22026511, 5745.35,Elite Complete Build LTD,01625900,,Other Expenses,Disabled Facilities Grant Mand,P03AC000009908,
http://statistics.data.gov.uk/id/local-authority/29UP,Tonbridge & Malling Borough Council,4/6/2022,0022026512/1,22026512, 827.33,Peabody South East LTD,01680900,,Other Expenses,Disabled Facilities Grant Mand,P03AC000009908,
http://statistics.data.gov.uk/id/local-authority/29UP,Tonbridge & Malling Borough Council,4/6/2022,0022026513/1,22026513, 1221.00,G2 Recruitment Solutions,01786000,,Payment re Prev Yrs Cred Acc,Sundry Creditors PHEHS,J80TB000001101,
http://statistics.data.gov.uk/id/local-authority/29UP,Tonbridge & Malling Borough Council,4/6/2022,0022026514/1,22026514, 2408.39,Vivid Resourcing,01773700,,Payment re Prev Yrs Cred Acc,Sundry Creditors PHEHS,J80TB000001101,
http://statistics.data.gov.uk/id/local-authority/29UP,Tonbridge & Malling Borough Council,4/6/2022,0031018570/1,31018570, 1098.00,Archway Highway Services Ltd,01398000,,Payment re Prev Yrs Cred Acc,Sundry Creditors SSLTS,J80TL000001101,
http://statistics.data.gov.uk/id/local-authority/29UP,Tonbridge & Malling Borough Council,4/6/2022,0031018572/1,31018572, 4789.10,HEREF Tonbridge Ltd,01518900,,Payment re Prev Yrs Cred Acc,Sundry Creditors SSLTS,J80TL000001101,
http://statistics.data.gov.uk/id/local-authority/29UP,Tonbridge & Malling Borough Council,4/6/2022,0031018573/1,31018573, 5159.90,HEREF Tonbridge Ltd,01518900,,Payment re Prev Yrs Cred Acc,Sundry Creditors SSLTS,J80TL000001101,
http://statistics.data.gov.uk/id/local-authority/29UP,Tonbridge & Malling Borough Council,4/6/2022,0031018574/1,31018574, 4213.10,HEREF Tonbridge Ltd,01518900,,Payment re Prev Yrs Cred Acc,Sundry Creditors SSLTS,J80TL000001101,
http://statistics.data.gov.uk/id/local-authority/29UP,Tonbridge & Malling Borough Council,4/6/2022,0031018575/1,31018575, 2640.00,Kent County Council,00322500,,Payment re Prev Yrs Cred Acc,Sundry Creditors SSLTS,J80TL000001101,
http://statistics.data.gov.uk/id/local-authority/29UP,Tonbridge & Malling Borough Council,4/6/2022,0031018575/2,31018575, 30.00,Kent County Council,00322500,,Payment re Prev Yrs Cred Acc,Sundry Creditors SSLTS,J80TL000001101,
http://statistics.data.gov.uk/id/local-authority/29UP,Tonbridge & Malling Borough Council,4/6/2022,0031018576/1,31018576, 883.66,Kings Hill Garage Ltd,01546300,,Payment re Prev Yrs Cred Acc,Sundry Creditors SSLTS,J80TL000001101,
http://statistics.data.gov.uk/id/local-authority/29UP,Tonbridge & Malling Borough Council,4/6/2022,0031018577/2,31018577, 4255.00,Marston,01485000,,Payment re Prev Yrs Cred Acc,Sundry Creditors SSLTS,J80TL000001101,
http://statistics.data.gov.uk/id/local-authority/29UP,Tonbridge & Malling Borough Council,4/6/2022,0031018579/1,31018579, 64.82,Shell U.K. Oil Products Limited,01673300,,"Petrol, Diesel & Oil",Parking Off-Street,E10HA000030106,
http://statistics.data.gov.uk/id/local-authority/29UP,Tonbridge & Malling Borough Council,4/6/2022,0031018579/2,31018579, 64.81,Shell U.K. Oil Products Limited,01673300,,"Petrol, Diesel & Oil",Parking On-Street,E10HD000030106,
http://statistics.data.gov.uk/id/local-authority/29UP,Tonbridge & Malling Borough Council,4/6/2022,0031018580/1,31018580, 1275.57,"ROBERTS COUNTRY VEHICLES LTD,",01713700,472683128,Payment re Prev Yrs Cred Acc,Sundry Creditors SSLTS,J80TL000001101,
http://statistics.data.gov.uk/id/local-authority/29UP,Tonbridge & Malling Borough Council,4/6/2022,0031018580/2,31018580, 45.00,"ROBERTS COUNTRY VEHICLES LTD,",01713700,472683128,Payment re Prev Yrs Cred Acc,Sundry Creditors SSLTS,J80TL000001101,
http://statistics.data.gov.uk/id/local-authority/29UP,Tonbridge & Malling Borough Council,4/6/2022,0031018582/1,31018582, 3180.33,Tonbridge & Malling Leisure Trust,01469100,,Payment re Prev Yrs Cred Acc,Sundry Creditors SSLTS,J80TL000001101,
http://statistics.data.gov.uk/id/local-authority/29UP,Tonbridge & Malling Borough Council,4/6/2022,0031018583/1,31018583, 170.85,British Telecommunications Plc,00012800,,Maintenance - General,Security Services Management,E09GA000040135,
http://statistics.data.gov.uk/id/local-authority/29UP,Tonbridge & Malling Borough Council,4/6/2022,0031018584/1,31018584, 151.83,British Telecommunications Plc,00012800,,Maintenance - General,Security Services Management,E09GA000040135,
http://statistics.data.gov.uk/id/local-authority/29UP,Tonbridge & Malling Borough Council,4/6/2022,0031018585/1,31018585, 526.49,C. S. Mitchell LTD,01704800,,BRREP Car Park mntce,Leis Man Poult Wood Golf Centr,M15HEP20001953,310042709
http://statistics.data.gov.uk/id/local-authority/29UP,Tonbridge & Malling Borough Council,4/6/2022,0031018586/1,31018586, 1366.50,C. S. Mitchell LTD,01704800,,Contract Payments,Car Park Imp Rolling Programme,P01AB000009904,310042758
http://statistics.data.gov.uk/id/local-authority/29UP,Tonbridge & Malling Borough Council,4/6/2022,0031018587/1,31018587, 170.85,British Telecommunications Plc,00012800,,Maintenance - General,Security Services Management,E09GA000040135,
http://statistics.data.gov.uk/id/local-authority/29UP,Tonbridge & Malling Borough Council,4/6/2022,0032009463/1,32009463, 224.91,KM Media Group Ltd,00053900,,Payment re Prev Yrs Cred Acc,Sundry Creditors PHEHS,J80TB000001101,
http://statistics.data.gov.uk/id/local-authority/29UP,Tonbridge & Malling Borough Council,4/6/2022,0032009465/1,32009465, 2625.00,G2 Recruitment Solutions,01786000,,Payment re Prev Yrs Cred Acc,Sundry Creditors PHEHS,J80TB000001101,
http://statistics.data.gov.uk/id/local-authority/29UP,Tonbridge & Malling Borough Council,4/6/2022,0032009466/1,32009466, 3153.11,G2 Recruitment Solutions,01786000,,Payment re Prev Yrs Cred Acc,Sundry Creditors PHEHS,J80TB000001101,
http://statistics.data.gov.uk/id/local-authority/29UP,Tonbridge & Malling Borough Council,4/6/2022,0032009467/1,32009467, 1720.50,The Oyster Partnership,01196400,,Payment re Prev Yrs Cred Acc,Sundry Creditors PHEHS,J80TB000001101,
http://statistics.data.gov.uk/id/local-authority/29UP,Tonbridge & Malling Borough Council,4/6/2022,0032009468/1,32009468, 646.80,The Oyster Partnership,01196400,,Payment re Prev Yrs Cred Acc,Sundry Creditors PHEHS,J80TB000001101,
http://statistics.data.gov.uk/id/local-authority/29UP,Tonbridge & Malling Borough Council,4/6/2022,0032009469/1,32009469, 1720.50,The Oyster Partnership,01196400,,Payment re Prev Yrs Cred Acc,Sundry Creditors PHEHS,J80TB000001101,
http://statistics.data.gov.uk/id/local-authority/29UP,Tonbridge & Malling Borough Council,4/6/2022,0032009470/1,32009470, 1520.00,The Oyster Partnership,01196400,,Payment re Prev Yrs Cred Acc,Sundry Creditors PHEHS,J80TB000001101,
http://statistics.data.gov.uk/id/local-authority/29UP,Tonbridge & Malling Borough Council,4/6/2022,0032009471/1,32009471, 1702.00,Vivid Resourcing,01773700,,Temporary Staff,Planning Sals&Overheads,D01AJDJ0111300,
http://statistics.data.gov.uk/id/local-authority/29UP,Tonbridge & Malling Borough Council,4/6/2022,0032009472/1,32009472, 1254.50,Tunbridge Wells Borough Council,00844600,,Payment re Prev Yrs Cred Acc,Sundry Creditors PHEHS,J80TB000001101,
http://statistics.data.gov.uk/id/local-authority/29UP,Tonbridge & Malling Borough Council,4/6/2022,0041034179/1,41034179, 507.38,KH Recruitment Ltd,01738900,,Temporary Staff,Finance Sals&Overheads,D01AFDF1111300,
http://statistics.data.gov.uk/id/local-authority/29UP,Tonbridge & Malling Borough Council,4/6/2022,0041034180/1,41034180, 20.00,Computershare Voucher Services,01212600,,Childcare Scheme,Finance Sals&Overheads,D01AFDF0911136,
http://statistics.data.gov.uk/id/local-authority/29UP,Tonbridge & Malling Borough Council,4/6/2022,0041034180/2,41034180, 1.40,Computershare Voucher Services,01212600,,National Insurance,Finance Sals&Overheads,D01AFDF0911191,
http://statistics.data.gov.uk/id/local-authority/29UP,Tonbridge & Malling Borough Council,4/6/2022,0041034180/3,41034180, 50.00,Computershare Voucher Services,01212600,,Childcare Scheme,Legal Sals&Overheads,D01ARDR0011136,
http://statistics.data.gov.uk/id/local-authority/29UP,Tonbridge & Malling Borough Council,4/6/2022,0041034180/4,41034180, 3.50,Computershare Voucher Services,01212600,,National Insurance,Legal Sals&Overheads,D01ARDR0011191,
http://statistics.data.gov.uk/id/local-authority/29UP,Tonbridge & Malling Borough Council,4/6/2022,0041034180/5,41034180, 20.00,Computershare Voucher Services,01212600,,Childcare Scheme,Env Hlth & Hsg Sals&Overheads,D01AVDV0211136,
http://statistics.data.gov.uk/id/local-authority/29UP,Tonbridge & Malling Borough Council,4/6/2022,0041034180/6,41034180, 1.40,Computershare Voucher Services,01212600,,National Insurance,Env Hlth & Hsg Sals&Overheads,D01AVDV0211191,
http://statistics.data.gov.uk/id/local-authority/29UP,Tonbridge & Malling Borough Council,4/6/2022,0041034180/7,41034180, 243.00,Computershare Voucher Services,01212600,,Childcare Scheme,Env Hlth & Hsg Sals&Overheads,D01AVDV0711136,
http://statistics.data.gov.uk/id/local-authority/29UP,Tonbridge & Malling Borough Council,4/6/2022,0041034180/8,41034180, 17.01,Computershare Voucher Services,01212600,,National Insurance,Env Hlth & Hsg Sals&Overheads,D01AVDV0711191,
http://statistics.data.gov.uk/id/local-authority/29UP,Tonbridge & Malling Borough Council,4/6/2022,0041034183/1,41034183, 1715.00,CIPFA Business Limited,01216800,,Reference Books & Publications,Finance Sals&Overheads,D01AFDF0243010,410032129
http://statistics.data.gov.uk/id/local-authority/29UP,Tonbridge & Malling Borough Council,4/6/2022,0041034187/1,41034187, 511.50,KH Recruitment Ltd,01738900,,Temporary Staff,Finance Sals&Overheads,D01AFDF1111300,
http://statistics.data.gov.uk/id/local-authority/29UP,Tonbridge & Malling Borough Council,4/6/2022,0041034188/1,41034188, 1593.00,The Oyster Partnership,01196400,,Temporary Staff,Finance Sals&Overheads,D01AFDF1111300,
http://statistics.data.gov.uk/id/local-authority/29UP,Tonbridge & Malling Borough Council,4/6/2022,0041034189/1,41034189, 1206.00,The Oyster Partnership,01196400,,Temporary Staff,Finance Sals&Overheads,D01AFDF1111300,
http://statistics.data.gov.uk/id/local-authority/29UP,Tonbridge & Malling Borough Council,4/6/2022,0041034190/1,41034190, 1368.00,The Oyster Partnership,01196400,,Temporary Staff,Finance Sals&Overheads,D01AFDF1111300,
http://statistics.data.gov.uk/id/local-authority/29UP,Tonbridge & Malling Borough Council,4/6/2022,0041034191/1,41034191, 6500.00,Grant Thornton UK LLP,01407400,,Payment re Prev Yrs Cred Acc,Sundry Creditors Finance,J80TF000001101,
http://statistics.data.gov.uk/id/local-authority/29UP,Tonbridge & Malling Borough Council,4/6/2022,0041034191/2,41034191, 7500.00,Grant Thornton UK LLP,01407400,,Payment re Prev Yrs Cred Acc,Sundry Creditors Finance,J80TF000001101,
http://statistics.data.gov.uk/id/local-authority/29UP,Tonbridge & Malling Borough Council,4/6/2022,0041034191/3,41034191, 9000.00,Grant Thornton UK LLP,01407400,,Payment re Prev Yrs Cred Acc,Sundry Creditors Finance,J80TF000001101,
http://statistics.data.gov.uk/id/local-authority/29UP,Tonbridge & Malling Borough Council,4/6/2022,0041034192/1,41034192, 750.00,Morgan Hunt UK Ltd,01086900,,Temporary Staff,Finance Sals&Overheads,D01AFDF1111300,
http://statistics.data.gov.uk/id/local-authority/29UP,Tonbridge & Malling Borough Council,4/6/2022,0041034193/1,41034193, 980.50,Morgan Hunt UK Ltd,01086900,,Temporary Staff,Finance Sals&Overheads,D01AFDF1111300,
http://statistics.data.gov.uk/id/local-authority/29UP,Tonbridge & Malling Borough Council,4/6/2022,0041034194/1,41034194, 1523.30,Rundle & Co Ltd,00087200,,Bailiffs Commission,Local Revenue & NNDR Collect,D41QA000044075,
http://statistics.data.gov.uk/id/local-authority/29UP,Tonbridge & Malling Borough Council,4/6/2022,0041034195/1,41034195, 3452.00,Kent County Council,00322500,,Tracing Services,Local Revenue & NNDR Collect,D41QA000044091,
http://statistics.data.gov.uk/id/local-authority/29UP,Tonbridge & Malling Borough Council,4/6/2022,0041034196/1,41034196, 16278.21,Kent County Council,00053700,,Payment re Prev Yrs Cred Acc,Sundry Creditors Finance,J80TF000001101,
http://statistics.data.gov.uk/id/local-authority/29UP,Tonbridge & Malling Borough Council,4/8/2022,0041034200/1,41034200, 15.20,HSBC Bank Plc,01740800,,Bank Charges,Banking Arrangements,D43QK000044222,
http://statistics.data.gov.uk/id/local-authority/29UP,Tonbridge & Malling Borough Council,4/13/2022,0011044157/1,11044157, 905.20,BBC Fire Protection Ltd,00008800,342427963,BRREP Servicing - Gas Ext Syst,Gibson Building West,M15KBP20001979,110069446
http://statistics.data.gov.uk/id/local-authority/29UP,Tonbridge & Malling Borough Council,4/13/2022,0011044158/1,11044158, 400.00,Utility Searches,01838900,,Professional Fees,Land Review,D40PSTON144001,110069447
http://statistics.data.gov.uk/id/local-authority/29UP,Tonbridge & Malling Borough Council,4/13/2022,0011044159/1,11044159, 156.00,Hadene Engineering Ltd,00041900,,Other Expenses,Homeless Accommodation,P03AX000009908,110069470
http://statistics.data.gov.uk/id/local-authority/29UP,Tonbridge & Malling Borough Council,4/13/2022,0011044160/1,11044160, 45.00,REDACTED PERSONAL DATA,00022600,,Other Expenses,Mayoral & Other Member Support,D29LX000048010,110069503
http://statistics.data.gov.uk/id/local-authority/29UP,Tonbridge & Malling Borough Council,4/13/2022,0011044161/1,11044161, 139.50,Southern Care Maintenance,01282600,,BRREP Servicing - Diasbled Acc,Tonbridge Castle / CAB,M15KFP20001981,110069499
http://statistics.data.gov.uk/id/local-authority/29UP,Tonbridge & Malling Borough Council,4/13/2022,0011044162/1,11044162, 990.00,Comfort Controls  (Service) Limited,01226700,,BRREP BMS System Mntce/Upgrade,Larkfield Leisure Centre,M15HDP20001912,110069337
http://statistics.data.gov.uk/id/local-authority/29UP,Tonbridge & Malling Borough Council,4/13/2022,0011044163/1,11044163, 280.00,G C Industrial Heating Services,00578100,,BRREP Servicing - Heating Syst,Gibson Building West,M15KBP20001934,110069501
http://statistics.data.gov.uk/id/local-authority/29UP,Tonbridge & Malling Borough Council,4/13/2022,0011044164/1,11044164, 171.36,KM Media Group Ltd,00053900,,Advertising General,Licences - Fee Paying,H27SHZ99944216,110069523
http://statistics.data.gov.uk/id/local-authority/29UP,Tonbridge & Malling Borough Council,4/13/2022,0011044165/1,11044165, 322.52,LexisNexis UK,00016100,,Reference Books & Publications,Legal Sals&Overheads,D01AR000043010,
http://statistics.data.gov.uk/id/local-authority/29UP,Tonbridge & Malling Borough Council,4/13/2022,0011044165/2,11044165, 342.47,LexisNexis UK,00016100,,Reference Books & Publications,Legal Sals&Overheads,D01AR000043010,
http://statistics.data.gov.uk/id/local-authority/29UP,Tonbridge & Malling Borough Council,4/13/2022,0011044165/3,11044165, 7.00,LexisNexis UK,00016100,,Reference Books & Publications,Legal Sals&Overheads,D01AR000043010,
http://statistics.data.gov.uk/id/local-authority/29UP,Tonbridge & Malling Borough Council,4/13/2022,0011044166/1,11044166, 2000.00,Reach Publishing Services Ltd,01806900,,Payment re Prev Yrs Cred Acc,Sundry Creditors Admin & Prop,J80TA000001101,
http://statistics.data.gov.uk/id/local-authority/29UP,Tonbridge & Malling Borough Council,4/13/2022,0011044167/1,11044167, 225.00,Kent County Council,00322500,,Payment re Prev Yrs Cred Acc,Sundry Creditors Admin & Prop,J80TA000001101,
http://statistics.data.gov.uk/id/local-authority/29UP,Tonbridge & Malling Borough Council,4/13/2022,0011044168/1,11044168, 1036.35,Venn Group Ltd,00914300,,Payment re Prev Yrs Cred Acc,Sundry Creditors Admin & Prop,J80TA000001101,
http://statistics.data.gov.uk/id/local-authority/29UP,Tonbridge & Malling Borough Council,4/13/2022,0011044170/1,11044170, 223.02,KH Recruitment Ltd,01738900,,Temporary Staff,Personnel Sals&Overheads,D01ABDB0311300,
http://statistics.data.gov.uk/id/local-authority/29UP,Tonbridge & Malling Borough Council,4/13/2022,0011044170/2,11044170, 888.75,KH Recruitment Ltd,01738900,,Payment re Prev Yrs Cred Acc,Sundry Creditors Admin & Prop,J80TA000001101,
http://statistics.data.gov.uk/id/local-authority/29UP,Tonbridge & Malling Borough Council,4/13/2022,0011044171/1,11044171, 1209.00,Thomson Snell & Passmore,00101700,,Legal Fees,Legal Sals&Overheads,D01ARDR0044002,
http://statistics.data.gov.uk/id/local-authority/29UP,Tonbridge & Malling Borough Council,4/13/2022,0011044172/1,11044172, 713.00,Thomson Snell & Passmore,00101700,,Legal Fees,Legal Sals&Overheads,D01ARDR0044002,
http://statistics.data.gov.uk/id/local-authority/29UP,Tonbridge & Malling Borough Council,4/13/2022,0011044173/1,11044173, 837.00,Thomson Snell & Passmore,00101700,,Legal Fees,Legal Sals&Overheads,D01ARDR0044002,
http://statistics.data.gov.uk/id/local-authority/29UP,Tonbridge & Malling Borough Council,4/13/2022,0011044174/1,11044174, 868.00,Thomson Snell & Passmore,00101700,,Legal Fees,Legal Sals&Overheads,D01ARDR0044002,
http://statistics.data.gov.uk/id/local-authority/29UP,Tonbridge & Malling Borough Council,4/13/2022,0011044175/1,11044175, 20.47,Oasis Group  - Box-It South East,00966800,931579211,Purchases,Electoral Registration,D31MF000040101,
http://statistics.data.gov.uk/id/local-authority/29UP,Tonbridge & Malling Borough Council,4/13/2022,0011044176/1,11044176, 899.00,Thomson Snell & Passmore,00101700,,Legal Fees,Legal Sals&Overheads,D01ARDR0044002,
http://statistics.data.gov.uk/id/local-authority/29UP,Tonbridge & Malling Borough Council,4/13/2022,0011044177/1,11044177, 341.25,Nova Lifts,01735600,,BRREP Servicing - lifts,Leis Man Poult Wood Golf Centr,M15HEP20001930,
http://statistics.data.gov.uk/id/local-authority/29UP,Tonbridge & Malling Borough Council,4/13/2022,0011044178/1,11044178, 700.00,Driven to perfection,01541000,,Payment re Prev Yrs Cred Acc,Sundry Creditors Admin & Prop,J80TA000001101,
http://statistics.data.gov.uk/id/local-authority/29UP,Tonbridge & Malling Borough Council,4/13/2022,0011044179/1,11044179, 2486.90,Royal Mail,00086200,,Payment re Prev Yrs Cred Acc,Sundry Creditors Admin & Prop,J80TA000001101,
http://statistics.data.gov.uk/id/local-authority/29UP,Tonbridge & Malling Borough Council,4/13/2022,0011044179/2,11044179, 7.36,Royal Mail,00086200,,Payment re Prev Yrs Cred Acc,Sundry Creditors Admin & Prop,J80TA000001101,
http://statistics.data.gov.uk/id/local-authority/29UP,Tonbridge & Malling Borough Council,4/13/2022,0011044179/3,11044179, 1.60,Royal Mail,00086200,,Payment re Prev Yrs Cred Acc,Sundry Creditors Admin & Prop,J80TA000001101,
http://statistics.data.gov.uk/id/local-authority/29UP,Tonbridge & Malling Borough Council,4/13/2022,0011044179/4,11044179, 606.39,Royal Mail,00086200,,Payment re Prev Yrs Cred Acc,Sundry Creditors Admin & Prop,J80TA000001101,
http://statistics.data.gov.uk/id/local-authority/29UP,Tonbridge & Malling Borough Council,4/13/2022,0011044180/1,11044180, 55.00,Extinguisher Doctor Ltd,00059500,,BRREP Response - General,Leybourne Lakes Country Park,M15HLP50001997,
http://statistics.data.gov.uk/id/local-authority/29UP,Tonbridge & Malling Borough Council,4/13/2022,0011044181/1,11044181, 76.00,Ashford Borough Council,00005800,,Hospitality,Mayoral & Other Member Support,D29LX000048003,
http://statistics.data.gov.uk/id/local-authority/29UP,Tonbridge & Malling Borough Council,4/13/2022,0011044182/1,11044182, 80.32,Scottish Water Business Stream Ltd,01641100,,Estate Management Charge,Land Review,D40PS000020400,
http://statistics.data.gov.uk/id/local-authority/29UP,Tonbridge & Malling Borough Council,4/13/2022,0011044183/1,11044183, 1346.10,K T Fire Protection Ltd,00057000,,Payment re Prev Yrs Cred Acc,Sundry Creditors Admin & Prop,J80TA000001101,
http://statistics.data.gov.uk/id/local-authority/29UP,Tonbridge & Malling Borough Council,4/13/2022,0011044184/1,11044184, 195.70,K T Fire Protection Ltd,00057000,,Payment re Prev Yrs Cred Acc,Sundry Creditors Admin & Prop,J80TA000001101,
http://statistics.data.gov.uk/id/local-authority/29UP,Tonbridge & Malling Borough Council,4/13/2022,0011044185/1,11044185, 138.00,K T Fire Protection Ltd,00057000,,Payment re Prev Yrs Cred Acc,Sundry Creditors Admin & Prop,J80TA000001101,
http://statistics.data.gov.uk/id/local-authority/29UP,Tonbridge & Malling Borough Council,4/13/2022,0011044186/1,11044186, 230.00,G C Industrial Heating Services,00578100,,BRREP Response - General,Gibson Building East,M15KGP50001997,
http://statistics.data.gov.uk/id/local-authority/29UP,Tonbridge & Malling Borough Council,4/13/2022,0011044187/1,11044187, 70.00,Archant Community Media Ltd,00831700,,Marketing,Ton Castle Council Chamber,D21FC000044215,
http://statistics.data.gov.uk/id/local-authority/29UP,Tonbridge & Malling Borough Council,4/13/2022,0011044188/1,11044188, 105.00,Tonbridge Civic Society,01200800,,Purchases,TIC Stock Account,K18AX000001002,
http://statistics.data.gov.uk/id/local-authority/29UP,Tonbridge & Malling Borough Council,4/13/2022,0011044190/1,11044190, 285.00,Lawyers in Local Government,01453200,,Reference Books & Publications,Legal Sals&Overheads,D01ARDR0043010,110069475
http://statistics.data.gov.uk/id/local-authority/29UP,Tonbridge & Malling Borough Council,4/13/2022,0012008310/1,12008310, 293.93,CCS Media Ltd,00018000,,Purchases,Information Technology,D27KD000040101,410032064
http://statistics.data.gov.uk/id/local-authority/29UP,Tonbridge & Malling Borough Council,4/13/2022,0012008310/2,12008310, 112.47,CCS Media Ltd,00018000,,Purchases,Information Technology,D27KD000040101,410032064
http://statistics.data.gov.uk/id/local-authority/29UP,Tonbridge & Malling Borough Council,4/13/2022,0012008310/3,12008310, 2.00,CCS Media Ltd,00018000,,Delivery Expenses,Information Technology,D27KD000044069,410032064
http://statistics.data.gov.uk/id/local-authority/29UP,Tonbridge & Malling Borough Council,4/13/2022,0012008311/1,12008311, 184.99,CCS Media Ltd,00018000,,Purchases,Information Technology,D27KD000040101,410032137
http://statistics.data.gov.uk/id/local-authority/29UP,Tonbridge & Malling Borough Council,4/13/2022,0012008311/2,12008311, 2.00,CCS Media Ltd,00018000,,Delivery Expenses,Information Technology,D27KD000044069,410032137
http://statistics.data.gov.uk/id/local-authority/29UP,Tonbridge & Malling Borough Council,4/13/2022,0012008312/1,12008312, 11.51,Daisy Communications,01068100,,Telephones - General,Leybourne Lakes Country Park,B22LK000045010,
http://statistics.data.gov.uk/id/local-authority/29UP,Tonbridge & Malling Borough Council,4/13/2022,0012008312/2,12008312, 6.24,Daisy Communications,01068100,,Telephones - Rentals,General Admin Telephones,D24GT000045005,
http://statistics.data.gov.uk/id/local-authority/29UP,Tonbridge & Malling Borough Council,4/13/2022,0012008312/3,12008312, 252.91,Daisy Communications,01068100,,Telephones - Call Costs,General Admin Telephones,D24GT000045006,
http://statistics.data.gov.uk/id/local-authority/29UP,Tonbridge & Malling Borough Council,4/13/2022,0012008312/4,12008312, 84.88,Daisy Communications,01068100,,Leased Lines & Modems,Information Technology,D27KD000045011,
http://statistics.data.gov.uk/id/local-authority/29UP,Tonbridge & Malling Borough Council,4/13/2022,0012008312/5,12008312, 65.88,Daisy Communications,01068100,,Maintenance - General,Security Services Management,E09GA000040135,
http://statistics.data.gov.uk/id/local-authority/29UP,Tonbridge & Malling Borough Council,4/13/2022,0012008313/1,12008313, 75.00,Get It Repaired,01631300,287357752,Maintenance - Micros,Information Technology,D27KD000040140,
http://statistics.data.gov.uk/id/local-authority/29UP,Tonbridge & Malling Borough Council,4/13/2022,0012008314/1,12008314, 25.50,Nexus Data Systems Ltd,01057000,,Purchases,Information Technology,D27KD000040101,410032169
http://statistics.data.gov.uk/id/local-authority/29UP,Tonbridge & Malling Borough Council,4/13/2022,0021037882/3,21037882, 544.98,G.L. & R.G. Bourne,00737500,,Payment re Prev Yrs Cred Acc,Sundry Creditors SSLTS,J80TL000001101,
http://statistics.data.gov.uk/id/local-authority/29UP,Tonbridge & Malling Borough Council,4/13/2022,0021037883/3,21037883, 74.71,G.L. & R.G. Bourne,00737500,,Payment re Prev Yrs Cred Acc,Sundry Creditors SSLTS,J80TL000001101,
http://statistics.data.gov.uk/id/local-authority/29UP,Tonbridge & Malling Borough Council,4/13/2022,0021037884/3,21037884, 4.80,G.L. & R.G. Bourne,00737500,,Payment re Prev Yrs Cred Acc,Sundry Creditors SSLTS,J80TL000001101,
http://statistics.data.gov.uk/id/local-authority/29UP,Tonbridge & Malling Borough Council,4/13/2022,0021037885/3,21037885, 397.78,G.L. & R.G. Bourne,00737500,,Payment re Prev Yrs Cred Acc,Sundry Creditors SSLTS,J80TL000001101,
http://statistics.data.gov.uk/id/local-authority/29UP,Tonbridge & Malling Borough Council,4/13/2022,0021037886/1,21037886, 26.43,Scottish Water Business Stream Ltd,01641100,,Sewerage Charges,Cemetery,B26MP000024003,
http://statistics.data.gov.uk/id/local-authority/29UP,Tonbridge & Malling Borough Council,4/13/2022,0021037887/1,21037887, 526.00,C & J Workwear ,01571300,,Payment re Prev Yrs Cred Acc,Sundry Creditors SSLTS,J80TL000001101,
http://statistics.data.gov.uk/id/local-authority/29UP,Tonbridge & Malling Borough Council,4/13/2022,0021037888/3,21037888, 540.00,Treework,00560700,,Payment re Prev Yrs Cred Acc,Sundry Creditors SSLTS,J80TL000001101,
http://statistics.data.gov.uk/id/local-authority/29UP,Tonbridge & Malling Borough Council,4/13/2022,0021037890/3,21037890, 53647.21,Landscape Services Ltd,00057600,,Payment re Prev Yrs Cred Acc,Sundry Creditors SSLTS,J80TL000001101,
http://statistics.data.gov.uk/id/local-authority/29UP,Tonbridge & Malling Borough Council,4/13/2022,0021037891/1,21037891, 586.47,Landscape Services Ltd,00057600,,Payment re Prev Yrs Cred Acc,Sundry Creditors SSLTS,J80TL000001101,
http://statistics.data.gov.uk/id/local-authority/29UP,Tonbridge & Malling Borough Council,4/13/2022,0021037892/1,21037892, 240.90,Landscape Services Ltd,00057600,,Maintenance of Grounds,Sports Grounds,B13ET000020402,210056711
http://statistics.data.gov.uk/id/local-authority/29UP,Tonbridge & Malling Borough Council,4/13/2022,0021037893/1,21037893, 13128.88,Tonbridge & Malling Leisure Trust,01469100,,Payment re Prev Yrs Cred Acc,Sundry Creditors SSLTS,J80TL000001101,
http://statistics.data.gov.uk/id/local-authority/29UP,Tonbridge & Malling Borough Council,4/13/2022,0021037894/1,21037894, 2000.00,Platt Parish Council,00078600,,Maintenance of Grounds,Countryside/Woodland Mgt,B22LG000020402,
http://statistics.data.gov.uk/id/local-authority/29UP,Tonbridge & Malling Borough Council,4/13/2022,0021037895/1,21037895, 5100.00,Tonbridge Allotments & Gardens Assoc,01166500,,Management Fee to T A G A,Allotments,B25MK000054006,210056725
http://statistics.data.gov.uk/id/local-authority/29UP,Tonbridge & Malling Borough Council,4/13/2022,0022026515/3,22026515, 1470.00,Graffiti Busters Ltd,00194700,,Payment re Prev Yrs Cred Acc,Sundry Creditors SSLTS,J80TL000001101,
http://statistics.data.gov.uk/id/local-authority/29UP,Tonbridge & Malling Borough Council,4/13/2022,0022026516/3,22026516, 11.67,Bulb Energy Ltd,01799000,214948301,Electricity,Homelessness,C01AATNHS21002,
http://statistics.data.gov.uk/id/local-authority/29UP,Tonbridge & Malling Borough Council,4/13/2022,0022026517/1,22026517, 6851.00,Under My Roof Ltd,01806700,,Payment re Prev Yrs Cred Acc,Sundry Creditors PHEHS,J80TB000001101,
http://statistics.data.gov.uk/id/local-authority/29UP,Tonbridge & Malling Borough Council,4/13/2022,0022026518/1,22026518, 2226.57,The Care Group-Housing & Care Trust,01699600,,Payment re Prev Yrs Cred Acc,Sundry Creditors PHEHS,J80TB000001101,
http://statistics.data.gov.uk/id/local-authority/29UP,Tonbridge & Malling Borough Council,4/13/2022,0022026519/1,22026519, 28123.50,Social & Community Care,01768400,,Payment re Prev Yrs Cred Acc,Sundry Creditors PHEHS,J80TB000001101,
http://statistics.data.gov.uk/id/local-authority/29UP,Tonbridge & Malling Borough Council,4/13/2022,0022026520/1,22026520, 2077.00,1st  Steps Housing Kent,01716100,,Payment re Prev Yrs Cred Acc,Sundry Creditors PHEHS,J80TB000001101,
http://statistics.data.gov.uk/id/local-authority/29UP,Tonbridge & Malling Borough Council,4/13/2022,0022026521/3,22026521, 14.19,Amazon EU SARL,01738400,,Stationery,Technical Sals&Overheads,D01AE000043003,
http://statistics.data.gov.uk/id/local-authority/29UP,Tonbridge & Malling Borough Council,4/13/2022,0022026522/1,22026522, 853.19,Clarion Housing,01776300,,Payment re Prev Yrs Cred Acc,Sundry Creditors PHEHS,J80TB000001101,
http://statistics.data.gov.uk/id/local-authority/29UP,Tonbridge & Malling Borough Council,4/13/2022,0022026523/1,22026523, 3518.50,House to Home Lettings Ltd ,01647600,,Payment re Prev Yrs Cred Acc,Sundry Creditors PHEHS,J80TB000001101,
http://statistics.data.gov.uk/id/local-authority/29UP,Tonbridge & Malling Borough Council,4/13/2022,0022026524/3,22026524, 375.00,Monitor Pest Control Ltd,01476700,,Payment re Prev Yrs Cred Acc,Sundry Creditors SSLTS,J80TL000001101,
http://statistics.data.gov.uk/id/local-authority/29UP,Tonbridge & Malling Borough Council,4/13/2022,0022026525/1,22026525, 49909.00,Paramount Independent Property Suppliers,01595300,,Payment re Prev Yrs Cred Acc,Sundry Creditors PHEHS,J80TB000001101,
http://statistics.data.gov.uk/id/local-authority/29UP,Tonbridge & Malling Borough Council,4/13/2022,0022026526/1,22026526, 3677.00,Simply Rented Ltd ,01691400,,Payment re Prev Yrs Cred Acc,Sundry Creditors PHEHS,J80TB000001101,
http://statistics.data.gov.uk/id/local-authority/29UP,Tonbridge & Malling Borough Council,4/13/2022,0022026527/1,22026527, 1550.00,Smart Property Professionals,01815100,,Payment re Prev Yrs Cred Acc,Sundry Creditors PHEHS,J80TB000001101,
http://statistics.data.gov.uk/id/local-authority/29UP,Tonbridge & Malling Borough Council,4/13/2022,0022026528/1,22026528, 613.76,CJB Services,01823200,,Other Expenses,Disabled Facilities Grant Mand,P03AC000009908,
http://statistics.data.gov.uk/id/local-authority/29UP,Tonbridge & Malling Borough Council,4/13/2022,0022026529/1,22026529, 6300.85,Adaptec Mobilty Ltd,01785800,339578354,Other Expenses,Disabled Facilities Grant Mand,P03AC000009908,
http://statistics.data.gov.uk/id/local-authority/29UP,Tonbridge & Malling Borough Council,4/13/2022,0022026530/1,22026530, 907.32,Peabody South East LTD,01680900,,Other Expenses,Disabled Facilities Grant Mand,P03AC000009908,
http://statistics.data.gov.uk/id/local-authority/29UP,Tonbridge & Malling Borough Council,4/13/2022,0022026531/1,22026531, 2288.04,DCB (Kent) LTD,01326800,,Other Expenses,Disabled Facilities Grant Mand,P03AC000009908,
http://statistics.data.gov.uk/id/local-authority/29UP,Tonbridge & Malling Borough Council,4/13/2022,0022026532/3,22026532, 1872.00,The Oyster Partnership,01196400,,Payment re Prev Yrs Cred Acc,Sundry Creditors PHEHS,J80TB000001101,
http://statistics.data.gov.uk/id/local-authority/29UP,Tonbridge & Malling Borough Council,4/13/2022,0022026534/3,22026534, 1564.80,Lucy and Martin Recycling LTD,01694200,,Payment re Prev Yrs Cred Acc,Sundry Creditors SSLTS,J80TL000001101,
http://statistics.data.gov.uk/id/local-authority/29UP,Tonbridge & Malling Borough Council,4/13/2022,0022026535/1,22026535, 68.65,British Gas Services LTD,01260000,,Electricity,Homelessness,C01AAMAUN21002,
http://statistics.data.gov.uk/id/local-authority/29UP,Tonbridge & Malling Borough Council,4/13/2022,0022026536/1,22026536, 277.77,British Gas,01148500,,Electricity,Homelessness,C01AAMAUN21002,
http://statistics.data.gov.uk/id/local-authority/29UP,Tonbridge & Malling Borough Council,4/13/2022,0022026537/1,22026537, 1550.00,Kent Housing,01503200,,Payment re Prev Yrs Cred Acc,Sundry Creditors PHEHS,J80TB000001101,
http://statistics.data.gov.uk/id/local-authority/29UP,Tonbridge & Malling Borough Council,4/13/2022,0022026539/1,22026539, 1221.00,G2 Recruitment Solutions,01786000,,Temporary Staff,Env Hlth & Hsg Sals&Overheads,D01AVDV0711300,
http://statistics.data.gov.uk/id/local-authority/29UP,Tonbridge & Malling Borough Council,4/13/2022,0022026540/1,22026540, 1030.13,Vivid Resourcing,01773700,,Temporary Staff,Env Hlth & Hsg Sals&Overheads,D01AVDV0711300,
http://statistics.data.gov.uk/id/local-authority/29UP,Tonbridge & Malling Borough Council,4/13/2022,0022026541/1,22026541, 8874.00,Less Homeless Ltd,01489300,,Payment re Prev Yrs Cred Acc,Sundry Creditors PHEHS,J80TB000001101,
http://statistics.data.gov.uk/id/local-authority/29UP,Tonbridge & Malling Borough Council,4/13/2022,0022026542/1,22026542, 8751.50,Premier Property Providers,01785400,,Payment re Prev Yrs Cred Acc,Sundry Creditors PHEHS,J80TB000001101,
http://statistics.data.gov.uk/id/local-authority/29UP,Tonbridge & Malling Borough Council,4/13/2022,0022026543/1,22026543, 10044.00,Simon Niblett Lettings,00072600,,Payment re Prev Yrs Cred Acc,Sundry Creditors PHEHS,J80TB000001101,
http://statistics.data.gov.uk/id/local-authority/29UP,Tonbridge & Malling Borough Council,4/13/2022,0022026544/1,22026544, 3410.00,Simon Niblett Lettings,00072600,,Payment re Prev Yrs Cred Acc,Sundry Creditors PHEHS,J80TB000001101,
http://statistics.data.gov.uk/id/local-authority/29UP,Tonbridge & Malling Borough Council,4/13/2022,0022026545/1,22026545, 6987.00,Kent Accommodation Ltd,01722000,,Payment re Prev Yrs Cred Acc,Sundry Creditors PHEHS,J80TB000001101,
http://statistics.data.gov.uk/id/local-authority/29UP,Tonbridge & Malling Borough Council,4/13/2022,0022026546/1,22026546, 961.00,Kent Property Services,01722500,,Payment re Prev Yrs Cred Acc,Sundry Creditors PHEHS,J80TB000001101,
http://statistics.data.gov.uk/id/local-authority/29UP,Tonbridge & Malling Borough Council,4/13/2022,0031018588/1,31018588, 2.00,Flowbird Smart City UK Limited,00898700,,Purchases,Parking Off-Street,E10HA000040101,310042805
http://statistics.data.gov.uk/id/local-authority/29UP,Tonbridge & Malling Borough Council,4/13/2022,0031018588/2,31018588, 35.20,Flowbird Smart City UK Limited,00898700,,Purchases,Parking Off-Street,E10HA000040101,310042805
http://statistics.data.gov.uk/id/local-authority/29UP,Tonbridge & Malling Borough Council,4/13/2022,0031018588/3,31018588, 3.00,Flowbird Smart City UK Limited,00898700,,Purchases,Parking On-Street,E10HD000040101,310042805
http://statistics.data.gov.uk/id/local-authority/29UP,Tonbridge & Malling Borough Council,4/13/2022,0031018588/4,31018588, 52.80,Flowbird Smart City UK Limited,00898700,,Purchases,Parking On-Street,E10HD000040101,310042805
http://statistics.data.gov.uk/id/local-authority/29UP,Tonbridge & Malling Borough Council,4/13/2022,0031018589/3,31018589, 4320.00,G4S Cash Solutions ( UK ) Ltd,01398400,,Payment re Prev Yrs Cred Acc,Sundry Creditors SSLTS,J80TL000001101,
http://statistics.data.gov.uk/id/local-authority/29UP,Tonbridge & Malling Borough Council,4/13/2022,0031018591/3,31018591, 3698.91,CDER Group,01773300,,Adjudication & Enforcement Ser,Parking Off-Street,E10HA000044230,
http://statistics.data.gov.uk/id/local-authority/29UP,Tonbridge & Malling Borough Council,4/13/2022,0031018593/3,31018593, 170.85,British Telecommunications Plc,00012800,,Maintenance - General,Security Services Management,E09GA000040135,
http://statistics.data.gov.uk/id/local-authority/29UP,Tonbridge & Malling Borough Council,4/13/2022,0031018594/4,31018594, 6.59,Npower Ltd,01675800,,Electricity,Parking Off-Street,E10HA000021002,
http://statistics.data.gov.uk/id/local-authority/29UP,Tonbridge & Malling Borough Council,4/13/2022,0031018594/5,31018594, 145.74,Npower Ltd,01675800,,Electricity,Parking Off-Street,E10HA000021002,
http://statistics.data.gov.uk/id/local-authority/29UP,Tonbridge & Malling Borough Council,4/13/2022,0031018595/4,31018595, 1.18,Npower Ltd,01675800,,Electricity,Parking Off-Street,E10HA000021002,
http://statistics.data.gov.uk/id/local-authority/29UP,Tonbridge & Malling Borough Council,4/13/2022,0031018595/5,31018595, 31.10,Npower Ltd,01675800,,Electricity,Parking Off-Street,E10HA000021002,
http://statistics.data.gov.uk/id/local-authority/29UP,Tonbridge & Malling Borough Council,4/13/2022,0031018596/4,31018596, 2.48,Npower Ltd,01675800,,Electricity,Parking Off-Street,E10HA000021002,
http://statistics.data.gov.uk/id/local-authority/29UP,Tonbridge & Malling Borough Council,4/13/2022,0031018596/5,31018596, 63.11,Npower Ltd,01675800,,Electricity,Parking Off-Street,E10HA000021002,
http://statistics.data.gov.uk/id/local-authority/29UP,Tonbridge & Malling Borough Council,4/13/2022,0031018597/3,31018597, 128.40,Imperial Civil Enforcement Solutions,00057200,,Adjudication & Enforcement Ser,Parking Off-Street,E10HA000044230,
http://statistics.data.gov.uk/id/local-authority/29UP,Tonbridge & Malling Borough Council,4/13/2022,0031018602/1,31018602, 21.99,KCS,00054200,,Purchases,Civil Contingencies,D33NA000040101,310042806
http://statistics.data.gov.uk/id/local-authority/29UP,Tonbridge & Malling Borough Council,4/13/2022,0031018602/2,31018602, 7.80,KCS,00054200,,Purchases,Civil Contingencies,D33NA000040101,310042806
http://statistics.data.gov.uk/id/local-authority/29UP,Tonbridge & Malling Borough Council,4/13/2022,0031018604/1,31018604, 13500.00,Kent & Medway Towns Fire Authority,00193500,,Kent Resilience Forum,Civil Contingencies,D33NA000048032,310042808
http://statistics.data.gov.uk/id/local-authority/29UP,Tonbridge & Malling Borough Council,4/13/2022,0031018604/2,31018604, 1112.96,Kent & Medway Towns Fire Authority,00193500,,Kent Resilience Forum,Civil Contingencies,D33NA000048032,310042808
http://statistics.data.gov.uk/id/local-authority/29UP,Tonbridge & Malling Borough Council,4/13/2022,0031018605/1,31018605, 2513.73,PSR Lighting & Signs Ltd,01265400,,Payment re Prev Yrs Cred Acc,Sundry Creditors SSLTS,J80TL000001101,
http://statistics.data.gov.uk/id/local-authority/29UP,Tonbridge & Malling Borough Council,4/13/2022,0031018606/1,31018606, 1500.00,PSR Lighting & Signs Ltd,01265400,,Payment re Prev Yrs Cred Acc,Sundry Creditors SSLTS,J80TL000001101,
http://statistics.data.gov.uk/id/local-authority/29UP,Tonbridge & Malling Borough Council,4/13/2022,0032009474/3,32009474, 1000.00,DHA Planning Ltd,01553900,,Payment re Prev Yrs Cred Acc,Sundry Creditors PHEHS,J80TB000001101,
http://statistics.data.gov.uk/id/local-authority/29UP,Tonbridge & Malling Borough Council,4/13/2022,0032009475/7,32009475, 2625.00,G2 Recruitment Solutions,01786000,,Temporary Staff,Planning Sals&Overheads,D01AJDJ0111300,
http://statistics.data.gov.uk/id/local-authority/29UP,Tonbridge & Malling Borough Council,4/13/2022,0032009476/3,32009476, 3218.43,G2 Recruitment Solutions,01786000,,Temporary Staff,Planning Sals&Overheads,D01AJDJ0111300,
http://statistics.data.gov.uk/id/local-authority/29UP,Tonbridge & Malling Borough Council,4/13/2022,0032009477/3,32009477, 2479.00,G2 Recruitment Solutions,01786000,,Temporary Staff,Planning Sals&Overheads,D01AJDJ0111300,
http://statistics.data.gov.uk/id/local-authority/29UP,Tonbridge & Malling Borough Council,4/13/2022,0032009478/1,32009478, 3375.00,Highgate Planning & Development Ltd,01838600,,Payment re Prev Yrs Cred Acc,Sundry Creditors PHEHS,J80TB000001101,
http://statistics.data.gov.uk/id/local-authority/29UP,Tonbridge & Malling Borough Council,4/13/2022,0032009479/1,32009479, 139.23,KM Media Group Ltd,00053900,,Advertising General,Development Management,A01ABZ99944216,320003394
http://statistics.data.gov.uk/id/local-authority/29UP,Tonbridge & Malling Borough Council,4/13/2022,0032009480/3,32009480, 1860.00,The Oyster Partnership,01196400,,Payment re Prev Yrs Cred Acc,Sundry Creditors PHEHS,J80TB000001101,
http://statistics.data.gov.uk/id/local-authority/29UP,Tonbridge & Malling Borough Council,4/13/2022,0032009481/3,32009481, 1640.00,The Oyster Partnership,01196400,,Payment re Prev Yrs Cred Acc,Sundry Creditors PHEHS,J80TB000001101,
http://statistics.data.gov.uk/id/local-authority/29UP,Tonbridge & Malling Borough Council,4/13/2022,0032009482/3,32009482, 2400.00,Robinson Escott Planning LLP,01653000,,Payment re Prev Yrs Cred Acc,Sundry Creditors PHEHS,J80TB000001101,
http://statistics.data.gov.uk/id/local-authority/29UP,Tonbridge & Malling Borough Council,4/13/2022,0032009483/1,32009483, 6250.00,Highgate Planning & Development Ltd,01838600,,Application & Appeals,Development Management,A01AB000044194,320003402
http://statistics.data.gov.uk/id/local-authority/29UP,Tonbridge & Malling Borough Council,4/13/2022,0041034202/1,41034202, 508.58,KH Recruitment Ltd,01738900,,Temporary Staff,Finance Sals&Overheads,D01AFDF1111300,
http://statistics.data.gov.uk/id/local-authority/29UP,Tonbridge & Malling Borough Council,4/13/2022,0041034203/1,41034203, 1000.00,Ashford Borough Council,00005800,,Tracing Services,Local Revenue & NNDR Collect,D41QA000044091,410032134
http://statistics.data.gov.uk/id/local-authority/29UP,Tonbridge & Malling Borough Council,4/13/2022,0041034204/1,41034204, 1155.00,Morgan Hunt UK Ltd,01086900,,Temporary Staff,Finance Sals&Overheads,D01AFDF1111300,
http://statistics.data.gov.uk/id/local-authority/29UP,Tonbridge & Malling Borough Council,4/13/2022,0041034205/1,41034205, 1168.86,Morgan Hunt UK Ltd,01086900,,Temporary Staff,Finance Sals&Overheads,D01AFDF1111300,
http://statistics.data.gov.uk/id/local-authority/29UP,Tonbridge & Malling Borough Council,4/13/2022,0041034207/1,41034207, 2495.08,Rundle & Co Ltd,00087200,,Bailiffs Commission,Local Revenue & NNDR Collect,D41QA000044075,
http://statistics.data.gov.uk/id/local-authority/29UP,Tonbridge & Malling Borough Council,4/13/2022,0041034208/1,41034208, 42.03,Rundle & Co Ltd,00087200,,Bailiffs Commission,Local Revenue & NNDR Collect,D41QA000044075,
http://statistics.data.gov.uk/id/local-authority/29UP,Tonbridge & Malling Borough Council,4/13/2022,0041034209/1,41034209, 1413.00,The Oyster Partnership,01196400,,Temporary Staff,Finance Sals&Overheads,D01AFDF1111300,
http://statistics.data.gov.uk/id/local-authority/29UP,Tonbridge & Malling Borough Council,4/13/2022,0051008679/3,51008679, 1200.00,Andy Gale,01646600,,Payment re Prev Yrs Cred Acc,Sundry Creditors Personnel,J80TP000001101,
http://statistics.data.gov.uk/id/local-authority/29UP,Tonbridge & Malling Borough Council,4/13/2022,0051008680/1,51008680, 60.00,National Pet College Ltd,01830600,,Ext Fees/Prof & Tech,Training,D10DCDR0413561,510010566
http://statistics.data.gov.uk/id/local-authority/29UP,Tonbridge & Malling Borough Council,4/13/2022,0051008681/1,51008681, 1660.00,Haymarket Media Group Limited,01197800,,Recruitment Advertising,Recruitment Expenses,D10DADJ0313110,510010554
http://statistics.data.gov.uk/id/local-authority/29UP,Tonbridge & Malling Borough Council,4/13/2022,0051008682/1,51008682, 144.00,Maidstone & Tun Wells NHS Trust,00067100,,Occuptional Health Medicals,Health Care,D10DBDJ0113311,
http://statistics.data.gov.uk/id/local-authority/29UP,Tonbridge & Malling Borough Council,4/13/2022,0051008683/3,51008683, 60.00,Maidstone & Tun Wells NHS Trust,00067100,,Occuptional Health Medicals,Health Care,D10DBDJ0113311,
http://statistics.data.gov.uk/id/local-authority/29UP,Tonbridge & Malling Borough Council,4/20/2022,0011044098/1,11044098, 355.00,Matt Stephens,01802100,,Meeting Expenses,Committee Administration,D29LL000048020,
http://statistics.data.gov.uk/id/local-authority/29UP,Tonbridge & Malling Borough Council,4/20/2022,0011044169/3,11044169, 887.52,TimeLine Gifts Ltd,00650200,,Payment re Prev Yrs Cred Acc,Sundry Creditors Admin & Prop,J80TA000001101,
http://statistics.data.gov.uk/id/local-authority/29UP,Tonbridge & Malling Borough Council,4/20/2022,0011044192/1,11044192, 329.83,Kent County Council,00322500,,Kent Highways,Local Land Charges,D35NK000044240,
http://statistics.data.gov.uk/id/local-authority/29UP,Tonbridge & Malling Borough Council,4/20/2022,0011044193/1,11044193, 138.00,K T Fire Protection Ltd,00057000,,Payment re Prev Yrs Cred Acc,Sundry Creditors Admin & Prop,J80TA000001101,
http://statistics.data.gov.uk/id/local-authority/29UP,Tonbridge & Malling Borough Council,4/20/2022,0011044194/1,11044194, 1023.50,KH Recruitment Ltd,01738900,,Temporary Staff,Personnel Sals&Overheads,D01ABDB0311300,
http://statistics.data.gov.uk/id/local-authority/29UP,Tonbridge & Malling Borough Council,4/20/2022,0011044195/1,11044195, 6400.00,Age UK Sevenoaks & Tonbridge,01381300,,Citizens Advice Bureau Grants,Grants & Payments to CAB,D37PB000047004,
http://statistics.data.gov.uk/id/local-authority/29UP,Tonbridge & Malling Borough Council,4/20/2022,0011044196/1,11044196, 3600.00,Involve Kent,01380500,,Citizens Advice Bureau Grants,Grants & Payments to CAB,D37PB000047004,
http://statistics.data.gov.uk/id/local-authority/29UP,Tonbridge & Malling Borough Council,4/20/2022,0011044197/1,11044197, 3600.00,Imago Community,01190800,,Citizens Advice Bureau Grants,Grants & Payments to CAB,D37PB000047004,
http://statistics.data.gov.uk/id/local-authority/29UP,Tonbridge & Malling Borough Council,4/20/2022,0011044198/1,11044198, 350.00,Thomson Snell & Passmore,00101700,,Legal Fees,Legal Sals&Overheads,D01ARDR0044002,
http://statistics.data.gov.uk/id/local-authority/29UP,Tonbridge & Malling Borough Council,4/20/2022,0011044199/1,11044199, 125.00,A One Event Services,01776600,,Re-opening High Streets,Eco Dev & Reg Gen Bus Support,D52TDCV1948076,
http://statistics.data.gov.uk/id/local-authority/29UP,Tonbridge & Malling Borough Council,4/20/2022,0011044200/1,11044200, 437.35,International Zoo Veterinary Group,01057400,,Professional Fees,Licences - Fee Paying,H27SH000044001,
http://statistics.data.gov.uk/id/local-authority/29UP,Tonbridge & Malling Borough Council,4/20/2022,0011044202/1,11044202, 4320.00,Maidstone Mediation Scheme,00122700,,Citizens Advice Bureau Grants,Grants & Payments to CAB,D37PB000047004,
http://statistics.data.gov.uk/id/local-authority/29UP,Tonbridge & Malling Borough Council,4/20/2022,0011044203/1,11044203, 124.00,Thomson Snell & Passmore,00101700,,Legal Fees,Legal Sals&Overheads,D01ARDR0044002,
http://statistics.data.gov.uk/id/local-authority/29UP,Tonbridge & Malling Borough Council,4/20/2022,0011044204/1,11044204, 430.00,Eryl Davies Veterinary Surgeon,01657600,,Professional Fees,Licences - Fee Paying,H27SH000044001,
http://statistics.data.gov.uk/id/local-authority/29UP,Tonbridge & Malling Borough Council,4/20/2022,0011044205/1,11044205, 628.24,Key Craft,01148600,,Purchases,TIC Stock Account,K18AX000001002,
http://statistics.data.gov.uk/id/local-authority/29UP,Tonbridge & Malling Borough Council,4/20/2022,0011044206/1,11044206, 2427.00,BML Building Services Ltd,01505000,,BRREP Response - General,Tonbridge Cemetery,M15HJP50001997,110069443
http://statistics.data.gov.uk/id/local-authority/29UP,Tonbridge & Malling Borough Council,4/20/2022,0011044207/1,11044207, 7986.00,Edenbeck Environmental Services,01363300,,BRREP General Maintenance,Shops & Maisonettes,M15NAP10001900,110069439
http://statistics.data.gov.uk/id/local-authority/29UP,Tonbridge & Malling Borough Council,4/20/2022,0011044208/1,11044208, 84.00,BML Building Services Ltd,01505000,,BRREP Window/door repairs,Larkfield Leisure Centre,M15HDP20001919,110069504
http://statistics.data.gov.uk/id/local-authority/29UP,Tonbridge & Malling Borough Council,4/20/2022,0011044209/1,11044209, 62.00,Loxton Installations Ltd,01278800,,BRREP General Maintenance,Land Review,M15MAP49901900,110069464
http://statistics.data.gov.uk/id/local-authority/29UP,Tonbridge & Malling Borough Council,4/20/2022,0011044210/1,11044210, 781.00,Loxton Installations Ltd,01278800,,BRREP Response - General,Tonbridge Cemetery,M15HJP50001997,110069444
http://statistics.data.gov.uk/id/local-authority/29UP,Tonbridge & Malling Borough Council,4/20/2022,0011044211/1,11044211, 227.00,Loxton Installations Ltd,01278800,,BRREP Serv Internal Lighting,Larkfield Leisure Centre,M15HDP20001957,110069496
http://statistics.data.gov.uk/id/local-authority/29UP,Tonbridge & Malling Borough Council,4/20/2022,0011044212/1,11044212, 140.00,Carbon Management Resources Ltd,01669200,,BRREP Display Energy Cert,Gibson Building West,M15KBP30001992,110069411
http://statistics.data.gov.uk/id/local-authority/29UP,Tonbridge & Malling Borough Council,4/20/2022,0011044212/2,11044212, 140.00,Carbon Management Resources Ltd,01669200,,BRREP Display Energy Cert,Gibson Building East,M15KGP30001992,110069411
http://statistics.data.gov.uk/id/local-authority/29UP,Tonbridge & Malling Borough Council,4/20/2022,0011044213/1,11044213, 2950.00,Christie and Co,01843200,,Professional Fees,Land Review,D40PS000044001,110069520
http://statistics.data.gov.uk/id/local-authority/29UP,Tonbridge & Malling Borough Council,4/20/2022,0011044214/1,11044214, 5000.00,Gooch Cunliffe Whale,01843300,,Professional Fees,Land Review,D40PS000044001,110069521
http://statistics.data.gov.uk/id/local-authority/29UP,Tonbridge & Malling Borough Council,4/20/2022,0011044215/1,11044215, 1390.00,G C Industrial Heating Services,00578100,,BRREP Plant renewals,Larkfield Leisure Centre,M15HDP20001909,110069482
http://statistics.data.gov.uk/id/local-authority/29UP,Tonbridge & Malling Borough Council,4/20/2022,0011044216/1,11044216, 870.00,G C Industrial Heating Services,00578100,,BRREP Plant renewals,Larkfield Leisure Centre,M15HDP20001909,110069461
http://statistics.data.gov.uk/id/local-authority/29UP,Tonbridge & Malling Borough Council,4/20/2022,0011044217/1,11044217, 4200.00,Visit Kent Ltd,01138400,,Tourism & Promotion of Facilit,Eco Dev & Reg Gen Bus Support,D52TD000048113,110069515
http://statistics.data.gov.uk/id/local-authority/29UP,Tonbridge & Malling Borough Council,4/20/2022,0012008315/1,12008315, 227.17,NEC Software Solutions UK Ltd,01073900,202159745,Software Hire & Support,Information Technology,D27KD000044059,410032162
http://statistics.data.gov.uk/id/local-authority/29UP,Tonbridge & Malling Borough Council,4/20/2022,0012008316/1,12008316, 8505.00,One Source IT Ltd,01844600,,Maintenance - Ancillary Equip,Information Technology,D27KD000040137,410032174
http://statistics.data.gov.uk/id/local-authority/29UP,Tonbridge & Malling Borough Council,4/20/2022,0012008317/1,12008317, 15000.00,NEC Software Solutions UK Ltd,01073900,202159745,Software Hire & Support,Information Technology,D27KD000044059,410032163
http://statistics.data.gov.uk/id/local-authority/29UP,Tonbridge & Malling Borough Council,4/20/2022,0012008317/2,12008317, 14400.00,NEC Software Solutions UK Ltd,01073900,202159745,Software Hire & Support,Information Technology,D27KD000044059,410032163
http://statistics.data.gov.uk/id/local-authority/29UP,Tonbridge & Malling Borough Council,4/20/2022,0012008317/3,12008317, 1000.00,NEC Software Solutions UK Ltd,01073900,202159745,Software Hire & Support,Information Technology,D27KD000044059,410032163
http://statistics.data.gov.uk/id/local-authority/29UP,Tonbridge & Malling Borough Council,4/20/2022,0012008317/4,12008317, 3000.00,NEC Software Solutions UK Ltd,01073900,202159745,Software Hire & Support,Information Technology,D27KD000044059,410032163
http://statistics.data.gov.uk/id/local-authority/29UP,Tonbridge & Malling Borough Council,4/20/2022,0012008317/5,12008317, 17000.00,NEC Software Solutions UK Ltd,01073900,202159745,Software Hire & Support,Information Technology,D27KD000044059,410032163
http://statistics.data.gov.uk/id/local-authority/29UP,Tonbridge & Malling Borough Council,4/20/2022,0021037896/1,21037896, 72630.04,Alliance Leisure Services Ltd,01781100,,Contract Payments,LLCP Facility Improv,P05FF000009904,210056638
http://statistics.data.gov.uk/id/local-authority/29UP,Tonbridge & Malling Borough Council,4/20/2022,0021037897/1,21037897, 775.00,Forestry First,01834900,,Maintenance of Grounds,Haysden Country Park,B22LC000020402,210056718
http://statistics.data.gov.uk/id/local-authority/29UP,Tonbridge & Malling Borough Council,4/20/2022,0021037898/3,21037898, 180.00,SWS Countryside & Landscape,01567200,,Health & Safety - Trees,Countryside/Woodland Mgt,B22LG000044045,
http://statistics.data.gov.uk/id/local-authority/29UP,Tonbridge & Malling Borough Council,4/20/2022,0021037899/1,21037899, 750.00,SWS Countryside & Landscape,01567200,,Health & Safety - Trees,Countryside/Woodland Mgt,B22LG000044045,210056734
http://statistics.data.gov.uk/id/local-authority/29UP,Tonbridge & Malling Borough Council,4/20/2022,0021037900/3,21037900, 120.00,SWS Countryside & Landscape,01567200,,Health & Safety - Trees,Countryside/Woodland Mgt,B22LG000044045,
http://statistics.data.gov.uk/id/local-authority/29UP,Tonbridge & Malling Borough Council,4/20/2022,0021037901/1,21037901, 150.00,Trevor May Contractors Ltd,00856100,,Maintenance of Grounds,Sports Grounds,B13ET000020402,210056717
http://statistics.data.gov.uk/id/local-authority/29UP,Tonbridge & Malling Borough Council,4/20/2022,0021037902/3,21037902, 150.00,B&Q/Screwfix Direct(TradeUKAccount),00141300,,Maintenance of Grounds,Open Spaces & Amenity Areas,B22LE000020402,
http://statistics.data.gov.uk/id/local-authority/29UP,Tonbridge & Malling Borough Council,4/20/2022,0021037904/1,21037904, 35.00,Weddle and Co,00714900,,Maintenance of Grounds,Sports Grounds,B13ET000020402,210056741
http://statistics.data.gov.uk/id/local-authority/29UP,Tonbridge & Malling Borough Council,4/20/2022,0022026538/1,22026538, 15948.00,MGB Plastics Ltd,00709600,,Purchases,Garden Waste Recycling,H34ST000040101,210056699
http://statistics.data.gov.uk/id/local-authority/29UP,Tonbridge & Malling Borough Council,4/20/2022,0022026547/1,22026547, 1805.11,Clarion Housing,01776300,,Payment re Prev Yrs Cred Acc,Sundry Creditors PHEHS,J80TB000001101,
http://statistics.data.gov.uk/id/local-authority/29UP,Tonbridge & Malling Borough Council,4/20/2022,0022026548/1,22026548, 5010.00,Hubbard & Houghton Construction Ltd,00970600,,Other Expenses,Disabled Facilities Grant Mand,P03AC000009908,
http://statistics.data.gov.uk/id/local-authority/29UP,Tonbridge & Malling Borough Council,4/20/2022,0022026550/3,22026550, 12076.00,SPA CAFFE LIMITED,00127100,,Payment re Prev Yrs Cred Acc,Sundry Creditors PHEHS,J80TB000001101,
http://statistics.data.gov.uk/id/local-authority/29UP,Tonbridge & Malling Borough Council,4/20/2022,0022026551/1,22026551, 636.50,Vivid Resourcing,01773700,,Temporary Staff,Env Hlth & Hsg Sals&Overheads,D01AVDV0711300,
http://statistics.data.gov.uk/id/local-authority/29UP,Tonbridge & Malling Borough Council,4/20/2022,0022026552/1,22026552, 11.67,Bulb Energy Ltd,01799000,214948301,Electricity,Homelessness,C01AATNHS21002,
http://statistics.data.gov.uk/id/local-authority/29UP,Tonbridge & Malling Borough Council,4/20/2022,0022026553/1,22026553, 38.00,Acoustics Noise & Vibration LTD,01490400,,Maintenance - General,Environmental Protection,H32SN000040135,220003219
http://statistics.data.gov.uk/id/local-authority/29UP,Tonbridge & Malling Borough Council,4/20/2022,0031018607/1,31018607, 1390.00,Archway Highway Services Ltd,01398000,,Premises Repairs & Maintenance,Parking On-Street,E10HD000020601,310042810
http://statistics.data.gov.uk/id/local-authority/29UP,Tonbridge & Malling Borough Council,4/20/2022,0031018608/1,31018608, 3475.00,DSSL Group Ltd,01839500,,CCTV Monitoring Station,Security Services Management,E09GA000051020,310042803
http://statistics.data.gov.uk/id/local-authority/29UP,Tonbridge & Malling Borough Council,4/20/2022,0031018611/1,31018611, 165.00,Flowbird Smart City UK Limited,00898700,,Premises Repairs & Maintenance,Parking Off-Street,E10HA000020601,310042812
http://statistics.data.gov.uk/id/local-authority/29UP,Tonbridge & Malling Borough Council,4/20/2022,0031018611/2,31018611, 164.00,Flowbird Smart City UK Limited,00898700,,Premises Repairs & Maintenance,Parking Off-Street,E10HA000020601,310042812
http://statistics.data.gov.uk/id/local-authority/29UP,Tonbridge & Malling Borough Council,4/20/2022,0031018614/1,31018614, 42654.39,BT RedCARE,00732500,245719348,CCTV Monitoring Station,Security Services Management,E09GA000051020,
http://statistics.data.gov.uk/id/local-authority/29UP,Tonbridge & Malling Borough Council,4/20/2022,0032009484/3,32009484, 500.00,DHA Planning Ltd,01553900,,Professional Fees,Planning Policy,A01AF000044001,
http://statistics.data.gov.uk/id/local-authority/29UP,Tonbridge & Malling Borough Council,4/20/2022,0032009485/3,32009485, 1687.50,Carrington West Limited,01844500,,Temporary Staff,Planning Sals&Overheads,D01AJDJ0111300,
http://statistics.data.gov.uk/id/local-authority/29UP,Tonbridge & Malling Borough Council,4/20/2022,0032009486/3,32009486, 1012.50,Carrington West Limited,01844500,,Temporary Staff,Planning Sals&Overheads,D01AJDJ0111300,
http://statistics.data.gov.uk/id/local-authority/29UP,Tonbridge & Malling Borough Council,4/20/2022,0032009487/3,32009487, 2625.00,G2 Recruitment Solutions,01786000,,Temporary Staff,Planning Sals&Overheads,D01AJDJ0111300,
http://statistics.data.gov.uk/id/local-authority/29UP,Tonbridge & Malling Borough Council,4/20/2022,0032009488/3,32009488, 3253.93,G2 Recruitment Solutions,01786000,,Temporary Staff,Planning Sals&Overheads,D01AJDJ0111300,
http://statistics.data.gov.uk/id/local-authority/29UP,Tonbridge & Malling Borough Council,4/20/2022,0032009489/3,32009489, 2479.00,G2 Recruitment Solutions,01786000,,Temporary Staff,Planning Sals&Overheads,D01AJDJ0111300,
http://statistics.data.gov.uk/id/local-authority/29UP,Tonbridge & Malling Borough Council,4/20/2022,0032009490/3,32009490, 1759.75,The Oyster Partnership,01196400,,Temporary Staff,Planning Sals&Overheads,D01AJDJ0111300,
http://statistics.data.gov.uk/id/local-authority/29UP,Tonbridge & Malling Borough Council,4/20/2022,0032009491/3,32009491, 1276.16,The Oyster Partnership,01196400,,Temporary Staff,Planning Sals&Overheads,D01AJDJ0111300,
http://statistics.data.gov.uk/id/local-authority/29UP,Tonbridge & Malling Borough Council,4/20/2022,0032009492/3,32009492, 1702.00,Vivid Resourcing,01773700,,Temporary Staff,Planning Sals&Overheads,D01AJDJ0111300,
http://statistics.data.gov.uk/id/local-authority/29UP,Tonbridge & Malling Borough Council,4/20/2022,0032009492/4,32009492, 3404.00,Vivid Resourcing,01773700,,Payment re Prev Yrs Cred Acc,Sundry Creditors PHEHS,J80TB000001101,
http://statistics.data.gov.uk/id/local-authority/29UP,Tonbridge & Malling Borough Council,4/20/2022,0032009493/3,32009493, 2100.00,Vivid Resourcing,01773700,,Temporary Staff,Planning Sals&Overheads,D01AJDJ0111300,
http://statistics.data.gov.uk/id/local-authority/29UP,Tonbridge & Malling Borough Council,4/20/2022,0032009494/3,32009494, 9520.00,Nathaniel Lichfield & Partners Ltd,00070000,,Payment re Prev Yrs Cred Acc,Sundry Creditors PHEHS,J80TB000001101,
http://statistics.data.gov.uk/id/local-authority/29UP,Tonbridge & Malling Borough Council,4/20/2022,0032009495/1,32009495, 3945.00,Haymarket Media Group Limited,01197800,,Subscriptions,Planning Sals&Overheads,D01AJDJ0247002,320003386
http://statistics.data.gov.uk/id/local-authority/29UP,Tonbridge & Malling Borough Council,4/20/2022,0032009496/1,32009496, 171.36,KM Media Group Ltd,00053900,,Advertising General,Development Management,A01ABZ99944216,320003395
http://statistics.data.gov.uk/id/local-authority/29UP,Tonbridge & Malling Borough Council,4/20/2022,0032009497/1,32009497, 1260.00,Sevenoaks District Council,00089300,,Payment re Prev Yrs Cred Acc,Sundry Creditors SSLTS,J80TL000001101,
http://statistics.data.gov.uk/id/local-authority/29UP,Tonbridge & Malling Borough Council,4/20/2022,0041034213/1,41034213, 1298.63,The Oyster Partnership,01196400,,Temporary Staff,Finance Sals&Overheads,D01AFDF1111300,
http://statistics.data.gov.uk/id/local-authority/29UP,Tonbridge & Malling Borough Council,4/20/2022,0041034221/1,41034221, 524.79,KH Recruitment Ltd,01738900,,Temporary Staff,Finance Sals&Overheads,D01AFDF1111300,
http://statistics.data.gov.uk/id/local-authority/29UP,Tonbridge & Malling Borough Council,4/20/2022,0041034222/1,41034222, 99.00,Grants Online Ltd,01029600,,Subscriptions,Finance Sals&Overheads,D01AFDF0047002,
http://statistics.data.gov.uk/id/local-authority/29UP,Tonbridge & Malling Borough Council,4/20/2022,0051008650/1,51008650, 305.00,Thomas Telford Limited,01833800,,Ext Fees/Prof & Tech,Training,D10DCDE0213561,510010549
http://statistics.data.gov.uk/id/local-authority/29UP,Tonbridge & Malling Borough Council,4/20/2022,0051008686/1,51008686, 139.30,GovNet Communications,00961000,,Ext Fees/Prof & Tech,Training,D10DCDJ0013561,510010563
http://statistics.data.gov.uk/id/local-authority/29UP,Tonbridge & Malling Borough Council,4/20/2022,0051008688/1,51008688, 1035.00,Cantium Business Solutions Ltd,01698600,,Criminal Records Bureau Checks,Recruitment Expenses,D10DADB0013180,510010565
http://statistics.data.gov.uk/id/local-authority/29UP,Tonbridge & Malling Borough Council,4/20/2022,0051008688/2,51008688, 337.50,Cantium Business Solutions Ltd,01698600,,Criminal Records Bureau Checks,Recruitment Expenses,D10DADB0013180,510010565
http://statistics.data.gov.uk/id/local-authority/29UP,Tonbridge & Malling Borough Council,4/21/2022,0041034237/1,41034237, 20.19,WorldPay Ltd,01402000,991280207,Credit Card Commission,Banking Arrangements,D43QK000044082,
http://statistics.data.gov.uk/id/local-authority/29UP,Tonbridge & Malling Borough Council,4/21/2022,0041034238/1,41034238, 222.95,National Westminster Bank Plc,00069400,,Bank Charges,Banking Arrangements,D43QK000044222,
http://statistics.data.gov.uk/id/local-authority/29UP,Tonbridge & Malling Borough Council,4/22/2022,0041034239/1,41034239, 162.00,Allpay Limited,01816500,,Giro / Swipe Card Charges,Local Revenue & NNDR Collect,D41QA000044083,
http://statistics.data.gov.uk/id/local-authority/29UP,Tonbridge & Malling Borough Council,4/22/2022,0041034241/1,41034241, 59.00,Allpay Limited,01816500,,Giro / Swipe Card Charges,Local Revenue & NNDR Collect,D41QA000044083,
http://statistics.data.gov.uk/id/local-authority/29UP,Tonbridge & Malling Borough Council,4/22/2022,0041034241/2,41034241, 2800.00,Allpay Limited,01816500,,Payment re Prev Yrs Cred Acc,Sundry Creditors Finance,J80TF000001101,
http://statistics.data.gov.uk/id/local-authority/29UP,Tonbridge & Malling Borough Council,4/22/2022,0041034242/1,41034242, 2208.00,H.M. Revenue & Customs,00048400,,Levy Payment,Apprenticeship Scheme,D10DE000013700,
http://statistics.data.gov.uk/id/local-authority/29UP,Tonbridge & Malling Borough Council,4/22/2022,0041034246/1,41034246, 118.93,Utax UK Ltd,01658500,642302771,Copy Charges,Multi Function Devices,D22GB000040125,
http://statistics.data.gov.uk/id/local-authority/29UP,Tonbridge & Malling Borough Council,4/25/2022,0011044224/3,11044224, 9354.36,Royal Mail,00086200,,Payment re Prev Yrs Cred Acc,Sundry Creditors Admin & Prop,J80TA000001101,
http://statistics.data.gov.uk/id/local-authority/29UP,Tonbridge & Malling Borough Council,4/25/2022,0011044224/4,11044224, 2.17,Royal Mail,00086200,,Payment re Prev Yrs Cred Acc,Sundry Creditors Admin & Prop,J80TA000001101,
http://statistics.data.gov.uk/id/local-authority/29UP,Tonbridge & Malling Borough Council,4/25/2022,0011044224/5,11044224, 4.80,Royal Mail,00086200,,Payment re Prev Yrs Cred Acc,Sundry Creditors Admin & Prop,J80TA000001101,
http://statistics.data.gov.uk/id/local-authority/29UP,Tonbridge & Malling Borough Council,4/25/2022,0011044224/6,11044224, 2041.01,Royal Mail,00086200,,Payment re Prev Yrs Cred Acc,Sundry Creditors Admin & Prop,J80TA000001101,
http://statistics.data.gov.uk/id/local-authority/29UP,Tonbridge & Malling Borough Council,4/25/2022,0041034248/1,41034248, 68.00,National Westminster Bank Plc,00069400,,Direct Debit / Bank Charges,Local Revenue & NNDR Collect,D41QA000044079,
http://statistics.data.gov.uk/id/local-authority/29UP,Tonbridge & Malling Borough Council,4/25/2022,0041034249/1,41034249, 200.38,National Westminster Bank Plc,00069400,,Direct Debit / Bank Charges,Local Revenue & NNDR Collect,D41QA000044079,
http://statistics.data.gov.uk/id/local-authority/29UP,Tonbridge & Malling Borough Council,4/27/2022,0011044191/1,11044191, 95000.00,Citizens Advice North and West Kent ,01617600,,Citizens Advice Bureau Grants,Grants & Payments to CAB,D37PB000047004,
http://statistics.data.gov.uk/id/local-authority/29UP,Tonbridge & Malling Borough Council,4/27/2022,0011044218/3,11044218, 188.00,BML Building Services Ltd,01505000,,BRREP Response - General,Leis Man Poult Wood Golf Centr,M15HEP50001997,
http://statistics.data.gov.uk/id/local-authority/29UP,Tonbridge & Malling Borough Council,4/27/2022,0011044219/3,11044219, 78.00,Hadene Engineering Ltd,00041900,,BRREP Response - General,Larkfield Leisure Centre,M15HDP50001997,
http://statistics.data.gov.uk/id/local-authority/29UP,Tonbridge & Malling Borough Council,4/27/2022,0011044220/3,11044220, 540.00,G C Industrial Heating Services,00578100,,BRREP Response - General,Gibson Building West,M15KBP50001997,
http://statistics.data.gov.uk/id/local-authority/29UP,Tonbridge & Malling Borough Council,4/27/2022,0011044221/3,11044221, 90.00,G C Industrial Heating Services,00578100,,BRREP Response - General,Gibson Building East,M15KGP50001997,
http://statistics.data.gov.uk/id/local-authority/29UP,Tonbridge & Malling Borough Council,4/27/2022,0011044222/3,11044222, 1563.76,Royal Mail,00086200,,Payment re Prev Yrs Cred Acc,Sundry Creditors Admin & Prop,J80TA000001101,
http://statistics.data.gov.uk/id/local-authority/29UP,Tonbridge & Malling Borough Council,4/27/2022,0011044222/4,11044222, 5.19,Royal Mail,00086200,,Payment re Prev Yrs Cred Acc,Sundry Creditors Admin & Prop,J80TA000001101,
http://statistics.data.gov.uk/id/local-authority/29UP,Tonbridge & Malling Borough Council,4/27/2022,0011044222/5,11044222, 12.80,Royal Mail,00086200,,Payment re Prev Yrs Cred Acc,Sundry Creditors Admin & Prop,J80TA000001101,
http://statistics.data.gov.uk/id/local-authority/29UP,Tonbridge & Malling Borough Council,4/27/2022,0011044222/6,11044222, 10130.46,Royal Mail,00086200,,Payment re Prev Yrs Cred Acc,Sundry Creditors Admin & Prop,J80TA000001101,
http://statistics.data.gov.uk/id/local-authority/29UP,Tonbridge & Malling Borough Council,4/27/2022,0011044223/3,11044223, 3017.25,Prosec General Security Ltd,00810600,,Payment re Prev Yrs Cred Acc,Sundry Creditors Admin & Prop,J80TA000001101,
http://statistics.data.gov.uk/id/local-authority/29UP,Tonbridge & Malling Borough Council,4/27/2022,0011044223/4,11044223, 583.88,Prosec General Security Ltd,00810600,,Payment re Prev Yrs Cred Acc,Sundry Creditors Admin & Prop,J80TA000001101,
http://statistics.data.gov.uk/id/local-authority/29UP,Tonbridge & Malling Borough Council,4/27/2022,0011044223/5,11044223, 215.99,Prosec General Security Ltd,00810600,,Payment re Prev Yrs Cred Acc,Sundry Creditors Admin & Prop,J80TA000001101,
http://statistics.data.gov.uk/id/local-authority/29UP,Tonbridge & Malling Borough Council,4/27/2022,0011044225/3,11044225, 113.50,K T Fire Protection Ltd,00057000,,Payment re Prev Yrs Cred Acc,Sundry Creditors Admin & Prop,J80TA000001101,
http://statistics.data.gov.uk/id/local-authority/29UP,Tonbridge & Malling Borough Council,4/27/2022,0011044226/3,11044226, 200.00,K T Fire Protection Ltd,00057000,,Payment re Prev Yrs Cred Acc,Sundry Creditors Admin & Prop,J80TA000001101,
http://statistics.data.gov.uk/id/local-authority/29UP,Tonbridge & Malling Borough Council,4/27/2022,0011044227/3,11044227, 68.00,K T Fire Protection Ltd,00057000,,Payment re Prev Yrs Cred Acc,Sundry Creditors Admin & Prop,J80TA000001101,
http://statistics.data.gov.uk/id/local-authority/29UP,Tonbridge & Malling Borough Council,4/27/2022,0011044228/3,11044228, 68.00,K T Fire Protection Ltd,00057000,,Payment re Prev Yrs Cred Acc,Sundry Creditors Admin & Prop,J80TA000001101,
http://statistics.data.gov.uk/id/local-authority/29UP,Tonbridge & Malling Borough Council,4/27/2022,0011044229/3,11044229, 1583.13,Venn Group Ltd,00914300,,Temporary Staff,Legal Sals&Overheads,D01ARDR0011300,
http://statistics.data.gov.uk/id/local-authority/29UP,Tonbridge & Malling Borough Council,4/27/2022,0011044230/1,11044230, 264.20,ID Management Systems,01600100,,Purchases,Licences - Fee Paying,H27SH000040101,110069529
http://statistics.data.gov.uk/id/local-authority/29UP,Tonbridge & Malling Borough Council,4/27/2022,0011044231/1,11044231, 170.00,East Sussex Fire Ltd,01843100,,Fixtures & Fittings,Homelessness,C01AATNHS25001,110069522
http://statistics.data.gov.uk/id/local-authority/29UP,Tonbridge & Malling Borough Council,4/27/2022,0011044232/1,11044232, 1090.00,G C Industrial Heating Services,00578100,,BRREP Plant renewals,Larkfield Leisure Centre,M15HDP20001909,110069486
http://statistics.data.gov.uk/id/local-authority/29UP,Tonbridge & Malling Borough Council,4/27/2022,0011044233/1,11044233, 336.00,HOB Mechanical Services Ltd,01706000,,BRREP Plant renewals,Larkfield Leisure Centre,M15HDP20001909,110069512
http://statistics.data.gov.uk/id/local-authority/29UP,Tonbridge & Malling Borough Council,4/27/2022,0011044234/1,11044234, 212.06,HOB Mechanical Services Ltd,01706000,,BRREP Plant renewals,Larkfield Leisure Centre,M15HDP20001909,110069489
http://statistics.data.gov.uk/id/local-authority/29UP,Tonbridge & Malling Borough Council,4/27/2022,0011044234/2,11044234, 52.80,HOB Mechanical Services Ltd,01706000,,BRREP Plant renewals,Larkfield Leisure Centre,M15HDP20001909,110069489
http://statistics.data.gov.uk/id/local-authority/29UP,Tonbridge & Malling Borough Council,4/27/2022,0011044234/3,11044234, 583.85,HOB Mechanical Services Ltd,01706000,,BRREP Plant renewals,Larkfield Leisure Centre,M15HDP20001909,110069489
http://statistics.data.gov.uk/id/local-authority/29UP,Tonbridge & Malling Borough Council,4/27/2022,0011044234/4,11044234, 360.00,HOB Mechanical Services Ltd,01706000,,BRREP Plant renewals,Larkfield Leisure Centre,M15HDP20001909,110069489
http://statistics.data.gov.uk/id/local-authority/29UP,Tonbridge & Malling Borough Council,4/27/2022,0011044234/5,11044234, 2232.24,HOB Mechanical Services Ltd,01706000,,BRREP Plant renewals,Larkfield Leisure Centre,M15HDP20001909,110069489
http://statistics.data.gov.uk/id/local-authority/29UP,Tonbridge & Malling Borough Council,4/27/2022,0011044235/1,11044235, 840.00,PV Environmental Surveys,00987200,,BRREP General Maintenance,Shops & Maisonettes,M15NAP10001900,110069449
http://statistics.data.gov.uk/id/local-authority/29UP,Tonbridge & Malling Borough Council,4/27/2022,0011044236/1,11044236, 156.00,Hadene Engineering Ltd,00041900,,Other Expenses,Homeless Accommodation,P03AX000009908,110069517
http://statistics.data.gov.uk/id/local-authority/29UP,Tonbridge & Malling Borough Council,4/27/2022,0011044237/1,11044237, 139.00,Willow Pumps Ltd,00114100,,BRREP Servicing - Pumping Stn,Tonbridge Swimming Pool,M15HBP20001931,110069172
http://statistics.data.gov.uk/id/local-authority/29UP,Tonbridge & Malling Borough Council,4/27/2022,0011044237/2,11044237, 278.00,Willow Pumps Ltd,00114100,,BRREP Servicing - Pumping Stn,Ton Sportsgrnd Bldgs / Toilets,M15HCP20001931,110069172
http://statistics.data.gov.uk/id/local-authority/29UP,Tonbridge & Malling Borough Council,4/27/2022,0011044237/3,11044237, 278.00,Willow Pumps Ltd,00114100,,BRREP Servicing - Pumping Stn,Vale Rise Depot,M15LCP20001931,110069172
http://statistics.data.gov.uk/id/local-authority/29UP,Tonbridge & Malling Borough Council,4/27/2022,0011044238/1,11044238, 667.04,H20 Servicing Limited,00888800,808041553,BRREP Plant renewals,Larkfield Leisure Centre,M15HDP20001909,110069484
http://statistics.data.gov.uk/id/local-authority/29UP,Tonbridge & Malling Borough Council,4/27/2022,0011044239/1,11044239, 1540.00,G C Industrial Heating Services,00578100,,BRREP Legionella Certification,PC - General,M15JAP30001995,110069480
http://statistics.data.gov.uk/id/local-authority/29UP,Tonbridge & Malling Borough Council,4/27/2022,0011044240/1,11044240, 400.00,Stuart Thomas Photography,00416800,,Re-opening High Streets,Eco Dev & Reg Gen Bus Support,D52TDCV1948076,110069527
http://statistics.data.gov.uk/id/local-authority/29UP,Tonbridge & Malling Borough Council,4/27/2022,0011044241/1,11044241, 2280.00,G C Industrial Heating Services,00578100,,Other Expenses,Homeless Accommodation,P03AX000009908,110069474
http://statistics.data.gov.uk/id/local-authority/29UP,Tonbridge & Malling Borough Council,4/27/2022,0011044242/1,11044242, 1005.00,Spy Alarms Ltd,01608800,,BRREP Servicing-IntruderAlarm,Gibson Building West,M15KBP20001939,110069536
http://statistics.data.gov.uk/id/local-authority/29UP,Tonbridge & Malling Borough Council,4/27/2022,0011044243/1,11044243, 1169.00,Spy Alarms Ltd,01608800,,BRREP Servicing-IntruderAlarm,Gibson Building East,M15KGP20001939,110069535
http://statistics.data.gov.uk/id/local-authority/29UP,Tonbridge & Malling Borough Council,4/27/2022,0011044245/1,11044245, 919.96,KH Recruitment Ltd,01738900,,Temporary Staff,Personnel Sals&Overheads,D01ABDB0311300,
http://statistics.data.gov.uk/id/local-authority/29UP,Tonbridge & Malling Borough Council,4/27/2022,0011044246/1,11044246, 7812.40,Automated Limited,00007000,,Payment re Prev Yrs Cred Acc,Sundry Creditors Admin & Prop,J80TA000001101,
http://statistics.data.gov.uk/id/local-authority/29UP,Tonbridge & Malling Borough Council,4/27/2022,0011044247/1,11044247, 796.38,Premier Paper Group,01421800,,Purchases - Paper,Printing,D22GA000040102,
http://statistics.data.gov.uk/id/local-authority/29UP,Tonbridge & Malling Borough Council,4/27/2022,0011044248/1,11044248, 2192.19,The Copyright Licensing Agency Ltd,00911200,,Copyright license,General Admin Admin & Prop,D24GR000044020,
http://statistics.data.gov.uk/id/local-authority/29UP,Tonbridge & Malling Borough Council,4/27/2022,0011044249/1,11044249, 9.29,Biffa Waste Services Ltd,01284500,,Trade Refuse Charges,Cleaning & Security,D21FD000044008,
http://statistics.data.gov.uk/id/local-authority/29UP,Tonbridge & Malling Borough Council,4/27/2022,0011044250/1,11044250, 9.29,Biffa Waste Services Ltd,01284500,,Trade Refuse Charges,Cleaning & Security,D21FD000044008,
http://statistics.data.gov.uk/id/local-authority/29UP,Tonbridge & Malling Borough Council,4/27/2022,0011044251/1,11044251, 16.24,Biffa Waste Services Ltd,01284500,,Trade Refuse Charges,Cleaning & Security,D21FD000044008,
http://statistics.data.gov.uk/id/local-authority/29UP,Tonbridge & Malling Borough Council,4/27/2022,0011044252/1,11044252, 95.40,Biffa Waste Services Ltd,01284500,,Trade Refuse Charges,Cleaning & Security,D21FD000044008,
http://statistics.data.gov.uk/id/local-authority/29UP,Tonbridge & Malling Borough Council,4/27/2022,0011044253/1,11044253, 48.72,Biffa Waste Services Ltd,01284500,,Trade Refuse Charges,Cleaning & Security,D21FD000044008,
http://statistics.data.gov.uk/id/local-authority/29UP,Tonbridge & Malling Borough Council,4/27/2022,0011044254/1,11044254, 160.80,Biffa Waste Services Ltd,01284500,,Trade Refuse Charges,Cleaning & Security,D21FD000044008,
http://statistics.data.gov.uk/id/local-authority/29UP,Tonbridge & Malling Borough Council,4/27/2022,0011044255/1,11044255, 268.00,Biffa Waste Services Ltd,01284500,,Trade Refuse Charges,Cleaning & Security,D21FD000044008,
http://statistics.data.gov.uk/id/local-authority/29UP,Tonbridge & Malling Borough Council,4/27/2022,0011044256/1,11044256, 43.14,Atlas Facilities Managment Limited ,01075900,,Miscellaneous Services,Cleaning & Security,D21FDDD6044015,
http://statistics.data.gov.uk/id/local-authority/29UP,Tonbridge & Malling Borough Council,4/27/2022,0011044257/1,11044257, 86.28,Atlas Facilities Managment Limited ,01075900,,Miscellaneous Services,Cleaning & Security,D21FDDD1044015,
http://statistics.data.gov.uk/id/local-authority/29UP,Tonbridge & Malling Borough Council,4/27/2022,0011044258/1,11044258, 3500.00,Hartnell Taylor Cook,01539500,,Professional Fees,Land Review,D40PS000044001,
http://statistics.data.gov.uk/id/local-authority/29UP,Tonbridge & Malling Borough Council,4/27/2022,0011044259/1,11044259, 60.00,Mayor of Medway's Charity,01297800,,Hospitality,Mayoral & Other Member Support,D29LX000048003,
http://statistics.data.gov.uk/id/local-authority/29UP,Tonbridge & Malling Borough Council,4/27/2022,0011044260/2,11044260, 1500.00,KCS,00054200,,Payment re Prev Yrs Cred Acc,Sundry Creditors Admin & Prop,J80TA000001101,
http://statistics.data.gov.uk/id/local-authority/29UP,Tonbridge & Malling Borough Council,4/27/2022,0011044261/2,11044261, 4000.00,KCS,00054200,,Payment re Prev Yrs Cred Acc,Sundry Creditors Admin & Prop,J80TA000001101,
http://statistics.data.gov.uk/id/local-authority/29UP,Tonbridge & Malling Borough Council,4/27/2022,0011044262/1,11044262, 418.68,Scottish Water Business Stream Ltd,01641100,,Maintenance of Grounds,Land Review,D40PS000020402,
http://statistics.data.gov.uk/id/local-authority/29UP,Tonbridge & Malling Borough Council,4/27/2022,0011044263/1,11044263, 94.75,KCS,00054200,,Electricity,Buildings,D21FEDD6021002,
http://statistics.data.gov.uk/id/local-authority/29UP,Tonbridge & Malling Borough Council,4/27/2022,0011044263/2,11044263, 2000.00,KCS,00054200,,Payment re Prev Yrs Cred Acc,Sundry Creditors Admin & Prop,J80TA000001101,
http://statistics.data.gov.uk/id/local-authority/29UP,Tonbridge & Malling Borough Council,4/27/2022,0011044264/1,11044264, 739.99,KCS,00054200,,Electricity,Buildings,D21FEDD1021002,
http://statistics.data.gov.uk/id/local-authority/29UP,Tonbridge & Malling Borough Council,4/27/2022,0011044264/2,11044264, 3500.00,KCS,00054200,,Payment re Prev Yrs Cred Acc,Sundry Creditors Admin & Prop,J80TA000001101,
http://statistics.data.gov.uk/id/local-authority/29UP,Tonbridge & Malling Borough Council,4/27/2022,0011044265/1,11044265, 165.00,BML Building Services Ltd,01505000,,BRREP Response - General,Leis Man Poult Wood Golf Centr,M15HEP50001997,
http://statistics.data.gov.uk/id/local-authority/29UP,Tonbridge & Malling Borough Council,4/27/2022,0011044266/1,11044266, 572.35,KCS,00054200,,Estate Management Charge,Land Review,D40PS000020400,
http://statistics.data.gov.uk/id/local-authority/29UP,Tonbridge & Malling Borough Council,4/27/2022,0011044267/7,11044267, 115.77,KCS,00054200,,Estate Management Charge,Land Review,D40PS000020400,
http://statistics.data.gov.uk/id/local-authority/29UP,Tonbridge & Malling Borough Council,4/27/2022,0011044268/1,11044268, 910.00,Freeths LLP,01845800,,Legal Fees,Legal Sals&Overheads,D01ARDR0044002,
http://statistics.data.gov.uk/id/local-authority/29UP,Tonbridge & Malling Borough Council,4/27/2022,0011044270/1,11044270, 2000.00,Kent County Council,00322500,,H&CG Fund Council Specific,Eco Dev & Reg Gen Bus Support,D52TD000047027,
http://statistics.data.gov.uk/id/local-authority/29UP,Tonbridge & Malling Borough Council,4/27/2022,0011044271/1,11044271, 2905.00,11KBW Limited,01247900,,Other Planning Enq - Legal Cos,Legal Sals&Overheads,D01ARDR0044146,
http://statistics.data.gov.uk/id/local-authority/29UP,Tonbridge & Malling Borough Council,4/27/2022,0011044272/1,11044272, 1217.80,Sellick Partnership Group Limited,01336800,,Temporary Staff,Legal Sals&Overheads,D01ARDR0011300,
http://statistics.data.gov.uk/id/local-authority/29UP,Tonbridge & Malling Borough Council,4/27/2022,0011044273/1,11044273, 1217.80,Sellick Partnership Group Limited,01336800,,Temporary Staff,Legal Sals&Overheads,D01ARDR0011300,
http://statistics.data.gov.uk/id/local-authority/29UP,Tonbridge & Malling Borough Council,4/27/2022,0011044274/1,11044274, 1217.80,Sellick Partnership Group Limited,01336800,,Temporary Staff,Legal Sals&Overheads,D01ARDR0011300,
http://statistics.data.gov.uk/id/local-authority/29UP,Tonbridge & Malling Borough Council,4/27/2022,0011044275/1,11044275, 1217.80,Sellick Partnership Group Limited,01336800,,Temporary Staff,Legal Sals&Overheads,D01ARDR0011300,
http://statistics.data.gov.uk/id/local-authority/29UP,Tonbridge & Malling Borough Council,4/27/2022,0011044276/1,11044276, 2041.10,Royal Mail,00086200,,Payment re Prev Yrs Cred Acc,Sundry Creditors Admin & Prop,J80TA000001101,
http://statistics.data.gov.uk/id/local-authority/29UP,Tonbridge & Malling Borough Council,4/27/2022,0011044276/2,11044276, 9354.36,Royal Mail,00086200,,Payment re Prev Yrs Cred Acc,Sundry Creditors Admin & Prop,J80TA000001101,
http://statistics.data.gov.uk/id/local-authority/29UP,Tonbridge & Malling Borough Council,4/27/2022,0011044276/3,11044276, 2.17,Royal Mail,00086200,,Payment re Prev Yrs Cred Acc,Sundry Creditors Admin & Prop,J80TA000001101,
http://statistics.data.gov.uk/id/local-authority/29UP,Tonbridge & Malling Borough Council,4/27/2022,0011044276/4,11044276, 4.80,Royal Mail,00086200,,Payment re Prev Yrs Cred Acc,Sundry Creditors Admin & Prop,J80TA000001101,
http://statistics.data.gov.uk/id/local-authority/29UP,Tonbridge & Malling Borough Council,4/27/2022,0011044277/1,11044277, 4.90,Royal Mail,00086200,,Purchases,Mailsort Stock Account,K37BR000001002,
http://statistics.data.gov.uk/id/local-authority/29UP,Tonbridge & Malling Borough Council,4/27/2022,0011044277/2,11044277, 1.75,Royal Mail,00086200,,Purchases,Mailsort Stock Account,K37BR000001002,
http://statistics.data.gov.uk/id/local-authority/29UP,Tonbridge & Malling Borough Council,4/27/2022,0011044277/3,11044277, 1329.21,Royal Mail,00086200,,Purchases,Mailsort Stock Account,K37BR000001002,
http://statistics.data.gov.uk/id/local-authority/29UP,Tonbridge & Malling Borough Council,4/27/2022,0011044278/3,11044278, 32700.00,G Baker Roofing Ltd,01664400,,Payment re Prev Yrs Cred Acc,Sundry Creditors Admin & Prop,J80TA000001101,
http://statistics.data.gov.uk/id/local-authority/29UP,Tonbridge & Malling Borough Council,4/27/2022,0011044279/1,11044279, 110.00,Kent County Council,00322500,,Hospitality,Mayoral & Other Member Support,D29LX000048003,
http://statistics.data.gov.uk/id/local-authority/29UP,Tonbridge & Malling Borough Council,4/27/2022,0011044280/3,11044280, 344.83,Initial Washroom Hygiene,00048300,,Laundry - Roller Towels,Cleaning & Security,D21FD000042003,
http://statistics.data.gov.uk/id/local-authority/29UP,Tonbridge & Malling Borough Council,4/27/2022,0012008318/3,12008318, 16225.35,Phoenix Software Ltd,00077400,755349015,Software Hire & Support,Information Technology,D27KD000044059,
http://statistics.data.gov.uk/id/local-authority/29UP,Tonbridge & Malling Borough Council,4/27/2022,0012008319/1,12008319, 2.00,CCS Media Ltd,00018000,,Delivery Expenses,Information Technology,D27KD000044069,410032176
http://statistics.data.gov.uk/id/local-authority/29UP,Tonbridge & Malling Borough Council,4/27/2022,0012008319/2,12008319, 94.95,CCS Media Ltd,00018000,,Initial Furniture & Equipment,Capital Renewals IT,P06FBFB1009906,410032176
http://statistics.data.gov.uk/id/local-authority/29UP,Tonbridge & Malling Borough Council,4/27/2022,0021037905/1,21037905, 125.00,Flash Mobile Welding Services Ltd,01189200,,Maintenance of Grounds,Open Spaces & Amenity Areas,B22LE000020402,210056748
http://statistics.data.gov.uk/id/local-authority/29UP,Tonbridge & Malling Borough Council,4/27/2022,0021037906/1,21037906, 194.00,WEL Medical Limited,01720700,,Purchases,Haysden Country Park,B22LC000040101,210056736
http://statistics.data.gov.uk/id/local-authority/29UP,Tonbridge & Malling Borough Council,4/27/2022,0021037906/2,21037906, 32.95,WEL Medical Limited,01720700,,Purchases,Haysden Country Park,B22LC000040101,210056736
http://statistics.data.gov.uk/id/local-authority/29UP,Tonbridge & Malling Borough Council,4/27/2022,0021037906/3,21037906, 39.95,WEL Medical Limited,01720700,,Purchases,Haysden Country Park,B22LC000040101,210056736
http://statistics.data.gov.uk/id/local-authority/29UP,Tonbridge & Malling Borough Council,4/27/2022,0021037906/4,21037906, 9.95,WEL Medical Limited,01720700,,Purchases,Haysden Country Park,B22LC000040101,210056736
http://statistics.data.gov.uk/id/local-authority/29UP,Tonbridge & Malling Borough Council,4/27/2022,0021037907/1,21037907, 8.29,Glasdon U.K. Ltd,00039200,,Maintenance of Grounds,Open Spaces & Amenity Areas,B22LE000020402,210056742
http://statistics.data.gov.uk/id/local-authority/29UP,Tonbridge & Malling Borough Council,4/27/2022,0021037907/2,21037907, 90.50,Glasdon U.K. Ltd,00039200,,Maintenance of Grounds,Open Spaces & Amenity Areas,B22LE000020402,210056742
http://statistics.data.gov.uk/id/local-authority/29UP,Tonbridge & Malling Borough Council,4/27/2022,0021037908/1,21037908, 219.30,PSR Lighting & Signs Ltd,01265400,,Maintenance of Grounds,Sports Grounds,B13ETCARP20402,210056730
http://statistics.data.gov.uk/id/local-authority/29UP,Tonbridge & Malling Borough Council,4/27/2022,0021037909/1,21037909, 73.78,Scottish Water Business Stream Ltd,01641100,,Sewerage Charges,Cemetery,B26MP000024003,
http://statistics.data.gov.uk/id/local-authority/29UP,Tonbridge & Malling Borough Council,4/27/2022,0021037910/1,21037910, 1745.60,Landscape Services Ltd,00057600,,Grounds Maintenance Contract,Cemetery,B26MP000050103,
http://statistics.data.gov.uk/id/local-authority/29UP,Tonbridge & Malling Borough Council,4/27/2022,0021037912/1,21037912, 64.98,KCC - L.A.S.E.R Commercial Services ,00184300,,Electricity,Open Spaces & Amenity Areas,B22LE000021002,
http://statistics.data.gov.uk/id/local-authority/29UP,Tonbridge & Malling Borough Council,4/27/2022,0021037913/1,21037913, 1100.00,Tonbridge Sports Association,00976800,,Honoraria,Tonbridge Sports Association,B02AH000044036,
http://statistics.data.gov.uk/id/local-authority/29UP,Tonbridge & Malling Borough Council,4/27/2022,0022026554/1,22026554, 22206.00,Coldwell & Shawyer Ltd,01740300,,Other Expenses,Disabled Facilities Grant Mand,P03AC000009908,
http://statistics.data.gov.uk/id/local-authority/29UP,Tonbridge & Malling Borough Council,4/27/2022,0022026555/1,22026555, 3049.92,Peabody South East LTD,01680900,,Other Expenses,Disabled Facilities Grant Mand,P03AC000009908,
http://statistics.data.gov.uk/id/local-authority/29UP,Tonbridge & Malling Borough Council,4/27/2022,0022026557/3,22026557, 2310.00,G2 Recruitment Solutions,01786000,,Temporary Staff,Env Hlth & Hsg Sals&Overheads,D01AVDV0711300,
http://statistics.data.gov.uk/id/local-authority/29UP,Tonbridge & Malling Borough Council,4/27/2022,0022026558/1,22026558, 1295.00,Independent Reviews Ltd,01657100,,Temporary Staff,Env Hlth & Hsg Sals&Overheads,D01AVDV0711300,
http://statistics.data.gov.uk/id/local-authority/29UP,Tonbridge & Malling Borough Council,4/27/2022,0022026558/2,22026558, 3885.00,Independent Reviews Ltd,01657100,,Payment re Prev Yrs Cred Acc,Sundry Creditors PHEHS,J80TB000001101,
http://statistics.data.gov.uk/id/local-authority/29UP,Tonbridge & Malling Borough Council,4/27/2022,0022026559/3,22026559, 1112.62,KCC - L.A.S.E.R Commercial Services ,00184300,,Electricity,Public Conveniences,H22SCH00921002,
http://statistics.data.gov.uk/id/local-authority/29UP,Tonbridge & Malling Borough Council,4/27/2022,0022026562/1,22026562, 1174.00,All Home Services Ltd,01802400,,Other Expenses,Disabled Facilities Grant Mand,P03AC000009908,
http://statistics.data.gov.uk/id/local-authority/29UP,Tonbridge & Malling Borough Council,4/27/2022,0022026563/3,22026563, 993.95,Vivid Resourcing,01773700,,Temporary Staff,Env Hlth & Hsg Sals&Overheads,D01AVDV0711300,
http://statistics.data.gov.uk/id/local-authority/29UP,Tonbridge & Malling Borough Council,4/27/2022,0022026564/1,22026564, 1930.20,Melba Products Ltd,00099400,,Purchases,Street Scene,H23SD000040101,220003176
http://statistics.data.gov.uk/id/local-authority/29UP,Tonbridge & Malling Borough Council,4/27/2022,0022026564/2,22026564, 1433.25,Melba Products Ltd,00099400,,Purchases,Street Scene,H23SD000040101,220003176
http://statistics.data.gov.uk/id/local-authority/29UP,Tonbridge & Malling Borough Council,4/27/2022,0022026564/3,22026564, 196.40,Melba Products Ltd,00099400,,Purchases,Street Scene,H23SD000040101,220003176
http://statistics.data.gov.uk/id/local-authority/29UP,Tonbridge & Malling Borough Council,4/27/2022,0022026564/4,22026564, 75.00,Melba Products Ltd,00099400,,Purchases,Street Scene,H23SD000040101,220003176
http://statistics.data.gov.uk/id/local-authority/29UP,Tonbridge & Malling Borough Council,4/27/2022,0022026565/3,22026565, 7.59,Mrs D Pellen,01151100,,Food Sampling,Food & Safety - Food Safety,H35SX000054011,
http://statistics.data.gov.uk/id/local-authority/29UP,Tonbridge & Malling Borough Council,4/27/2022,0022026566/1,22026566, 123.75,Sevenoaks District Council,00089300,,Healthy Living Initiatives,Public Health - Healthy Living,H40SYVH0048145,220003220
http://statistics.data.gov.uk/id/local-authority/29UP,Tonbridge & Malling Borough Council,4/27/2022,0022026567/1,22026567, 1400.00,Smart Property Professionals,01815100,,Temporary Accommodation,Homelessness,C01AA000044051,
http://statistics.data.gov.uk/id/local-authority/29UP,Tonbridge & Malling Borough Council,4/27/2022,0022026568/1,22026568, 360.00,Britains Limited,01743900,,Repairs & Mtce to Buildings,Homelessness,C01AA000020101,220003217
http://statistics.data.gov.uk/id/local-authority/29UP,Tonbridge & Malling Borough Council,4/27/2022,0031018554/1,31018554, 500.00,Traffic Enforcement Centre,00604200,,Adjudication & Enforcement Ser,Parking Off-Street,E10HA000044230,
http://statistics.data.gov.uk/id/local-authority/29UP,Tonbridge & Malling Borough Council,4/27/2022,0031018554/2,31018554, 500.00,Traffic Enforcement Centre,00604200,,Adjudication & Enforcement Ser,Parking On-Street,E10HD000044230,
http://statistics.data.gov.uk/id/local-authority/29UP,Tonbridge & Malling Borough Council,4/27/2022,0031018616/3,31018616, 173.13,KCC - L.A.S.E.R Commercial Services ,00184300,,Electricity,Parking Off-Street,E10HA000021002,
http://statistics.data.gov.uk/id/local-authority/29UP,Tonbridge & Malling Borough Council,4/27/2022,0031018617/3,31018617, 260.00,Wellden Land Surveys,01410600,,Contract Payments,TRSG Riverside Rivetment,P05DD000009904,
http://statistics.data.gov.uk/id/local-authority/29UP,Tonbridge & Malling Borough Council,4/27/2022,0031018622/1,31018622, 900.24,CDER Group,01773300,,Adjudication & Enforcement Ser,Parking Off-Street,E10HA000044230,
http://statistics.data.gov.uk/id/local-authority/29UP,Tonbridge & Malling Borough Council,4/27/2022,0031018624/1,31018624, 54.85,Kings Hill Garage Ltd,01546300,,Transport Repair & Maintenance,Parking Off-Street,E10HA000030103,
http://statistics.data.gov.uk/id/local-authority/29UP,Tonbridge & Malling Borough Council,4/27/2022,0031018626/1,31018626, 497.63,DSSL Group Ltd,01839500,,Contract Payments,TRSG Riverside Rivetment,P05DD000009904,210056743
http://statistics.data.gov.uk/id/local-authority/29UP,Tonbridge & Malling Borough Council,4/27/2022,0032009498/3,32009498, 2100.00,G2 Recruitment Solutions,01786000,,Temporary Staff,Planning Sals&Overheads,D01AJDJ0111300,
http://statistics.data.gov.uk/id/local-authority/29UP,Tonbridge & Malling Borough Council,4/27/2022,0032009499/3,32009499, 2497.07,G2 Recruitment Solutions,01786000,,Temporary Staff,Planning Sals&Overheads,D01AJDJ0111300,
http://statistics.data.gov.uk/id/local-authority/29UP,Tonbridge & Malling Borough Council,4/27/2022,0032009500/3,32009500, 2261.25,G2 Recruitment Solutions,01786000,,Temporary Staff,Planning Sals&Overheads,D01AJDJ0111300,
http://statistics.data.gov.uk/id/local-authority/29UP,Tonbridge & Malling Borough Council,4/27/2022,0032009502/1,32009502, 100000.00,KWT Consultancy Services,01845300,,Payments,S106 - Commuted Sums,M04AD000001001,
http://statistics.data.gov.uk/id/local-authority/29UP,Tonbridge & Malling Borough Council,4/27/2022,0032009503/3,32009503, 1350.00,Carrington West Limited,01844500,,Temporary Staff,Planning Sals&Overheads,D01AJDJ0111300,
http://statistics.data.gov.uk/id/local-authority/29UP,Tonbridge & Malling Borough Council,4/27/2022,0032009504/3,32009504, 1380.00,Vivid Resourcing,01773700,,Temporary Staff,Planning Sals&Overheads,D01AJDJ0111300,
http://statistics.data.gov.uk/id/local-authority/29UP,Tonbridge & Malling Borough Council,4/27/2022,0032009505/3,32009505, 1596.00,Vivid Resourcing,01773700,,Temporary Staff,Planning Sals&Overheads,D01AJDJ0111300,
http://statistics.data.gov.uk/id/local-authority/29UP,Tonbridge & Malling Borough Council,4/27/2022,0032009509/1,32009509, 182.07,KM Media Group Ltd,00053900,,Advertising General,Development Management,A01ABZ99944216,320003404
http://statistics.data.gov.uk/id/local-authority/29UP,Tonbridge & Malling Borough Council,4/27/2022,0032009510/1,32009510, 205.00,London Borough of Camden,01429600,,Professional Membership,Planning Sals&Overheads,D01AJDJ0147001,310042811
http://statistics.data.gov.uk/id/local-authority/29UP,Tonbridge & Malling Borough Council,4/27/2022,0032009511/1,32009511, 1750.10,The Oyster Partnership,01196400,,Temporary Staff,Planning Sals&Overheads,D01AJDJ0111300,
http://statistics.data.gov.uk/id/local-authority/29UP,Tonbridge & Malling Borough Council,4/27/2022,0032009512/1,32009512, 1315.51,The Oyster Partnership,01196400,,Temporary Staff,Planning Sals&Overheads,D01AJDJ0111300,
http://statistics.data.gov.uk/id/local-authority/29UP,Tonbridge & Malling Borough Council,4/27/2022,0032009515/1,32009515, 2614.00,Aylesford Parish Council,00007300,,Payments,S106 - Commuted Sums,M04AD000001001,
http://statistics.data.gov.uk/id/local-authority/29UP,Tonbridge & Malling Borough Council,4/27/2022,0032009516/1,32009516, 1700.00,REDACTED PERSONAL DATA,01736600,,Application & Appeals,Development Management,A01AB000044194,320003401
http://statistics.data.gov.uk/id/local-authority/29UP,Tonbridge & Malling Borough Council,4/27/2022,0041034225/3,41034225, 971.25,Morgan Hunt UK Ltd,01086900,,Temporary Staff,Finance Sals&Overheads,D01AFDF1111300,
http://statistics.data.gov.uk/id/local-authority/29UP,Tonbridge & Malling Borough Council,4/27/2022,0041034226/3,41034226, 1029.71,Morgan Hunt UK Ltd,01086900,,Temporary Staff,Finance Sals&Overheads,D01AFDF1111300,
http://statistics.data.gov.uk/id/local-authority/29UP,Tonbridge & Malling Borough Council,4/27/2022,0041034227/3,41034227, 879.38,Morgan Hunt UK Ltd,01086900,,Temporary Staff,Finance Sals&Overheads,D01AFDF1111300,
http://statistics.data.gov.uk/id/local-authority/29UP,Tonbridge & Malling Borough Council,4/27/2022,0041034228/3,41034228, 1203.65,Morgan Hunt UK Ltd,01086900,,Temporary Staff,Finance Sals&Overheads,D01AFDF1111300,
http://statistics.data.gov.uk/id/local-authority/29UP,Tonbridge & Malling Borough Council,4/27/2022,0041034229/3,41034229, 516.46,KH Recruitment Ltd,01738900,,Temporary Staff,Finance Sals&Overheads,D01AFDF1111300,
http://statistics.data.gov.uk/id/local-authority/29UP,Tonbridge & Malling Borough Council,4/27/2022,0041034230/1,41034230, 80.00,WorldPay Ltd,01402000,991280207,Credit Card Commission,Banking Arrangements,D43QK000044082,
http://statistics.data.gov.uk/id/local-authority/29UP,Tonbridge & Malling Borough Council,4/27/2022,0041034230/2,41034230, 60.16,WorldPay Ltd,01402000,991280207,Credit Card Commission,Banking Arrangements,D43QK000044082,
http://statistics.data.gov.uk/id/local-authority/29UP,Tonbridge & Malling Borough Council,4/27/2022,0041034230/3,41034230, 0.88,WorldPay Ltd,01402000,991280207,Credit Card Commission,Banking Arrangements,D43QK000044082,
http://statistics.data.gov.uk/id/local-authority/29UP,Tonbridge & Malling Borough Council,4/27/2022,0041034231/1,41034231, 80.00,WorldPay Ltd,01402000,991280207,Credit Card Commission,Banking Arrangements,D43QK000044082,
http://statistics.data.gov.uk/id/local-authority/29UP,Tonbridge & Malling Borough Council,4/27/2022,0041034231/2,41034231, 49.52,WorldPay Ltd,01402000,991280207,Credit Card Commission,Banking Arrangements,D43QK000044082,
http://statistics.data.gov.uk/id/local-authority/29UP,Tonbridge & Malling Borough Council,4/27/2022,0041034231/3,41034231, 0.72,WorldPay Ltd,01402000,991280207,Credit Card Commission,Banking Arrangements,D43QK000044082,
http://statistics.data.gov.uk/id/local-authority/29UP,Tonbridge & Malling Borough Council,4/27/2022,0041034232/1,41034232, 80.00,WorldPay Ltd,01402000,991280207,Credit Card Commission,Banking Arrangements,D43QK000044082,
http://statistics.data.gov.uk/id/local-authority/29UP,Tonbridge & Malling Borough Council,4/27/2022,0041034232/2,41034232, 137.92,WorldPay Ltd,01402000,991280207,Credit Card Commission,Banking Arrangements,D43QK000044082,
http://statistics.data.gov.uk/id/local-authority/29UP,Tonbridge & Malling Borough Council,4/27/2022,0041034232/3,41034232, 0.24,WorldPay Ltd,01402000,991280207,Credit Card Commission,Banking Arrangements,D43QK000044082,
http://statistics.data.gov.uk/id/local-authority/29UP,Tonbridge & Malling Borough Council,4/27/2022,0041034233/3,41034233, 400.00,Airey Consultancy Services Ltd,01760800,,Consultancy Fees,Local Revenue & NNDR Collect,D41QACV1944011,
http://statistics.data.gov.uk/id/local-authority/29UP,Tonbridge & Malling Borough Council,4/27/2022,0041034233/4,41034233, 400.00,Airey Consultancy Services Ltd,01760800,,Consultancy Fees,Local Revenue & NNDR Collect,D41QACV1944011,
http://statistics.data.gov.uk/id/local-authority/29UP,Tonbridge & Malling Borough Council,4/27/2022,0041034233/5,41034233, 450.00,Airey Consultancy Services Ltd,01760800,,Consultancy Fees,Local Revenue & NNDR Collect,D41QACV1944011,
http://statistics.data.gov.uk/id/local-authority/29UP,Tonbridge & Malling Borough Council,4/27/2022,0041034233/6,41034233, 550.00,Airey Consultancy Services Ltd,01760800,,Consultancy Fees,Local Revenue & NNDR Collect,D41QACV1944011,
http://statistics.data.gov.uk/id/local-authority/29UP,Tonbridge & Malling Borough Council,4/27/2022,0041034251/1,41034251, 27.98,KCS,00054200,,Stationery,Finance Sals&Overheads,D01AF000043003,410032168
http://statistics.data.gov.uk/id/local-authority/29UP,Tonbridge & Malling Borough Council,4/27/2022,0041034252/1,41034252, 1547.20,The Oyster Partnership,01196400,,Temporary Staff,Finance Sals&Overheads,D01AFDF1111300,
http://statistics.data.gov.uk/id/local-authority/29UP,Tonbridge & Malling Borough Council,4/27/2022,0041034253/1,41034253, 1000.00,Kent County Council,00322500,,Tracing Services,Local Revenue & NNDR Collect,D41QA000044091,410032172
http://statistics.data.gov.uk/id/local-authority/29UP,Tonbridge & Malling Borough Council,4/27/2022,0041034254/1,41034254, 1823.07,Rundle & Co Ltd,00087200,,Bailiffs Commission,Local Revenue & NNDR Collect,D41QA000044075,
http://statistics.data.gov.uk/id/local-authority/29UP,Tonbridge & Malling Borough Council,4/27/2022,0041034255/1,41034255, 1097.75,Rundle & Co Ltd,00087200,,Bailiffs Commission,Local Revenue & NNDR Collect,D41QA000044075,
http://statistics.data.gov.uk/id/local-authority/29UP,Tonbridge & Malling Borough Council,4/27/2022,0041034257/1,41034257, 122384.69,Upper Medway Internal Drainage Board,00109100,,Payments to Drainage Boards,Drainage Boards Levies,D44QT000024004,
http://statistics.data.gov.uk/id/local-authority/29UP,Tonbridge & Malling Borough Council,4/27/2022,0041034258/1,41034258, 720.57,Maidstone Borough Council,01173700,,Bailiffs Commission,Local Revenue & NNDR Collect,D41QA000044075,
http://statistics.data.gov.uk/id/local-authority/29UP,Tonbridge & Malling Borough Council,4/27/2022,0041034259/1,41034259, 1730.58,Maidstone Borough Council,01173700,,Bailiffs Commission,Local Revenue & NNDR Collect,D41QA000044075,
http://statistics.data.gov.uk/id/local-authority/29UP,Tonbridge & Malling Borough Council,4/27/2022,0041034260/1,41034260, 2160.44,Maidstone Borough Council,01173700,,Bailiffs Commission,Local Revenue & NNDR Collect,D41QA000044075,
http://statistics.data.gov.uk/id/local-authority/29UP,Tonbridge & Malling Borough Council,4/27/2022,0041034261/1,41034261, 1607.59,Maidstone Borough Council,01173700,,Bailiffs Commission,Local Revenue & NNDR Collect,D41QA000044075,
http://statistics.data.gov.uk/id/local-authority/29UP,Tonbridge & Malling Borough Council,4/29/2022,0041034256/1,41034256, 108123.62,Lower Medway Internal Drainage Board,00059900,,Payments to Drainage Boards,Drainage Boards Levies,D44QT000024004,
